Workbook

Sheet BExRepositorySheet (hidden)
A1: 7

Sheet Ingresos
A3: EMPRESA DE ACUEDUCTO ALCANTARILLADO DE BOGOTA
A4: EJECUCION PRESUPUESTAL DE INGRESOS
A5: A 30 DE JUNIO DE 2020
C6: 1 | D6: 2 | E6: 3 | F6: 4 | G6: 5 | H6: 6 | I6: 7=(6/4) | J6: 8=(4-6)
A7: CODIGO SECRETARIA DE HACIENDA | B7: RUBRO | C7: PRESUPUESTO INICIAL | D7: MODIFICACIONES MES | E7: MODIFICACIONES ACUMULADAS | F7: PRESUPUESTO DEFINITIVO | G7: RECAUDOS MES | H7: RECAUDOS ACUMULADOS | I7: % EJEC PPTAL | J7: SALDO POR RECAUDAR
A8: TOTAL INGRESOS + DISPONIBILIDAD INICIAL | C8: 5839715601000 | D8: 130411501617 | E8: 40333732617 | F8: 5880049333617 | G8: 263462797797 | H8: 1969072811162 | I8: 0.3348735188 | J8: 3910976522455
A9: 310000000000000 | B9: DISPONIBILIDAD INICIAL | C9: 767299231000 | D9: 200597436247 | E9: 200597436247 | F9: 967896667247 | G9: 117987259456 | H9: 885286490456 | I9: 0.9146497972 | J9: 82610176791
A10: 310000000000000 | B10: DISPONIBILIDAD INICIAL | C10: 767299231000 | D10: 200597436247 | E10: 200597436247 | F10: 967896667247 | G10: 117987259456 | H10: 885286490456 | I10: 0.9146497972 | J10: 82610176791
A11: 320000000000000 | B11: INGRESOS | C11: 5072416370000 | D11: -70185934630 | E11: -160263703630 | F11: 4912152666370 | G11: 145475538341 | H11: 1083786320706 | I11: 0.2206336802 | J11: 3828366345664
A12: 321000000000000 | B12: INGRESOS CORRIENTES | C12: 2820980097000 | D12: -30923604999 | E12: -30923604999 | F12: 2790056492001 | G12: 121960240590 | H12: 848053831256 | I12: 0.3039557922 | J12: 1942002660745
A13: 321010000000000 | B13: INGRESOS DE EXPLOTACION | C13: 1891699605000 | F13: 1891699605000 | G13: 121960240590 | H13: 832683147484 | I13: 0.4401772593 | J13: 1059016457516
A14: 321010200000000 | B14: VENTA DE SERVICIOS | C14: 1867900061000 | F14: 1867900061000 | G14: 120532331643 | H14: 813113644413 | I14: 0.4353089661 | J14: 1054786416587
A15: 321010201000000 | B15: SERVICIO ACUEDUCTO | C15: 957909591000 | F15: 957909591000 | G15: 63767919736 | H15: 417211759686 | I15: 0.4355439841 | J15: 540697831314
A16: 321010202000000 | B16: SERVICIO ALCANTARILLADO | C16: 909990470000 | F16: 909990470000 | G16: 56764411907 | H16: 395901884727 | I16: 0.4350615724 | J16: 514088585273
A17: 321019900000000 | B17: OTROS INGRESOS DE EXPLOTACION | C17: 23799544000 | F17: 23799544000 | G17: 1427908947 | H17: 19569503071 | I17: 0.8222637825 | J17: 4230040929
A18: 321019902000000 | B18: INTERESES A USUARIOS | C18: 2987672000 | F18: 2987672000 | G18: 400534900 | H18: 4579423038 | I18: 1.532773021 | J18: -1591751038
A19: 321019903000000 | B19: PUBLICACIONES | C19: 6794000 | F19: 6794000 | G19: 935200 | H19: 8638150 | I19: 1.271438034 | J19: -1844150
A20: 321019904000000 | B20: SERVICIOS | C20: 529000000 | F20: 529000000 | G20: 22842682 | H20: 138023089 | I20: 0.2609132117 | J20: 390976911
A21: 321019905000000 | B21: CUOTAS PARTES PENSIONALES | G21: 56014846 | H21: 494708396 | J21: -494708396
A22: 321019906000000 | B22: EXTRAORDINARIOS RECUPERACIÓN | G22: 324891070 | H22: 8173226189 | J22: -8173226189
A23: 321019907000000 | B23: INGRESOS CENTRAL HIDROELÉCTRICA | C23: 10889390000 | F23: 10889390000 | G23: 118788094 | H23: 2542699830 | I23: 0.2335025038 | J23: 8346690170
A24: 321019908000000 | B24: SANCIONES Y MULTAS | H24: 2991480 | J24: -2991480
A25: 321019909000000 | B25: COMISIONES | C25: 9386688000 | F25: 9386688000 | G25: 503902155 | H25: 3629792899 | I25: 0.3866958078 | J25: 5756895101
A26: 321020000000000 | B26: OTROS INGRESOS CORRIENTES | C26: 929280492000 | D26: -30923604999 | E26: -30923604999 | F26: 898356887001 | H26: 15370683772 | I26: 0.01710977452 | J26: 882986203229
A27: 321020100000000 | B27: RENTAS CONTRACTUALES | C27: 929280492000 | D27: -30923604999 | E27: -30923604999 | F27: 898356887001 | H27: 15370683772 | I27: 0.01710977452 | J27: 882986203229
A28: 321020199000000 | B28: OTRAS RENTAS CONTRACTUALES | C28: 929280492000 | D28: -30923604999 | E28: -30923604999 | F28: 898356887001 | H28: 15370683772 | I28: 0.01710977452 | J28: 882986203229
A29: 322000000000000 | B29: TRANSFERENCIAS | C29: 244494114000 | D29: 14579207314 | E29: -75498561686 | F29: 168995552314 | G29: 16241985211 | H29: 62200617529 | I29: 0.3680606778 | J29: 106794934785
A30: 322030000000000 | B30: MUNICIPIOS | C30: 2068000000 | F30: 2068000000 | J30: 2068000000
A31: 322030000000000 | B31: MUNICIPIOS | C31: 2068000000 | F31: 2068000000 | J31: 2068000000
A32: 322040000000000 | B32: ADMINISTRACION CENTRAL | C32: 242426114000 | D32: 14579207314 | E32: -75498561686 | F32: 166927552314 | G32: 16241985211 | H32: 62200617529 | I32: 0.3726204372 | J32: 104726934785
A33: 322040300000000 | B33: SECRETARIA DISTRITAL DE HACIENDA | C33: 78525000000 | F33: 78525000000 | G33: 16241985211 | H33: 16241985211 | I33: 0.2068383981 | J33: 62283014789
A34: 322040500000000 | B34: SDH - MÍNIMO VITAL | C34: 73823345000 | F34: 73823345000 | H34: 34220083636 | I34: 0.4635401395 | J34: 39603261364
A35: 322040600000000 | B35: SDH - LEY 99 DE 1993 | C35: 90077769000 | E35: -90077769000
A36: 322040800000000 | B36: LEY 99 DE 1993, SUBSIDIOS Y MÍNIMO VITAL - VIGENCIA ANTERIOR | D36: 14579207314 | E36: 14579207314 | F36: 14579207314 | H36: 11738548682 | I36: 0.8051568531 | J36: 2840658632
A37: 323000000000000 | B37: RECURSOS DE CAPITAL | C37: 2006942159000 | D37: -53841536945 | E37: -53841536945 | F37: 1953100622055 | G37: 7273312540 | H37: 173531871921 | I37: 0.0888494274 | J37: 1779568750134
A38: 323010000000000 | B38: RECURSOS DEL CREDITO | C38: 1689330396000 | D38: -53841536945 | E38: -53841536945 | F38: 1635488859055 | J38: 1635488859055
A39: 323010100000000 | B39: CREDITO INTERNO | C39: 1689330396000 | D39: -53841536945 | E39: -53841536945 | F39: 1635488859055 | J39: 1635488859055
A40: 323010101000000 | B40: VIGENCIA | C40: 1689330396000 | D40: -53841536945 | E40: -53841536945 | F40: 1635488859055 | J40: 1635488859055
A41: 323020000000000 | B41: RENDIMIENTOS POR OPERACIONES FINANCIERAS | C41: 72159584000 | F41: 72159584000 | G41: 6096356448 | H41: 54286583238 | I41: 0.7523128631 | J41: 17873000762
A42: 323020000000000 | B42: RENDIMIENTOS POR OPERACIONES FINANCIERAS | C42: 72159584000 | F42: 72159584000 | G42: 6096356448 | H42: 54286583238 | I42: 0.7523128631 | J42: 17873000762
A43: 323090000000000 | B43: OTROS RECURSOS DE CAPITAL | C43: 245452179000 | F43: 245452179000 | G43: 1176956092 | H43: 119245288683 | I43: 0.4858188229 | J43: 126206890317
A44: 323090100000000 | B44: RECUPERACION PRESTAMOS - BIENESTAR | C44: 10700000000 | F44: 10700000000 | G44: 1172906992 | H44: 3587152439 | I44: 0.3352478915 | J44: 7112847561
A45: 323090200000000 | B45: INDEMNIZACIONES COMPAÑIAS DE SEGURO | G45: 4049100 | H45: 33274985 | J45: -33274985
A46: 323090300000000 | B46: RECURSOS FIDUCIA | C46: 119249830000 | F46: 119249830000 | J46: 119249830000
A47: 323099900000000 | B47: OTROS | C47: 115502349000 | F47: 115502349000 | H47: 115624861259 | I47: 1.001060691 | J47: -122512259

Sheet Gastos
A2: EMPRESA DE ACUEDUCTO ALCANTARILLADO DE BOGOTA
A3: EJECUCION PRESUPUESTAL DE GASTOS
A4: A 30 DE JUNIO DE 2020 | C4: 1 | D4: 2 | E4: 3 | F4: 4=(1+3) | G4: 5 | H4: 6=(4-5) | I4: 7 | J4: 8 | K4: 9=(8/6) | L4: 11 | M4: 12 | N4: 13=(12/6)
A5: CODIGO SECRETARIA DE HACIENDA | B5: RUBRO | C5: PRESUPUESTO INICIAL | D5: MODIFICACIONES MES | E5: MODIFICACIONES ACUMULADAS | F5: PRESUPUESTO DEFINITIVO | G5: SUSPENSION | H5: APROPIACION DISPONIBLE | I5: COMPROMISOS MES | J5: COMPROMISOS ACUMULADOS | K5: % EJEC PPTAL | L5: AUTORIZACIONES DE GIRO | N5: % EJEC AUT. GIRO
L6: MES | M6: ACUMULADO
A7: TOTAL GASTOS + DISPONIBILIDAD FINAL | C7: 5839715601000 | D7: 130411501617 | E7: 40333732617 | F7: 5880049333617 | G7: 23140379822 | H7: 5856908953795 | I7: 175369151234 | J7: 3089896578701 | K7: 0.5275643864 | L7: 209924390622 | M7: 999129369351 | N7: 0.1705898755
A8: 330000000000000 | B8: GASTOS | C8: 5162593543000 | D8: 14656526315 | E8: -75421242685 | F8: 5087172300315 | G8: 23140379822 | H8: 5064031920493 | I8: 175369151234 | J8: 3089896578701 | K8: 0.6101653045 | L8: 209924390622 | M8: 999129369351 | N8: 0.1972991847
A9: 331000000000000 | B9: GASTOS DE FUNCIONAMIENTO | C9: 1523729930000 | D9: 10077319439 | E9: 10077319439 | F9: 1533807249439 | G9: 23140379822 | H9: 1510666869617 | I9: 174843368217 | J9: 784074809600 | K9: 0.5190256207 | L9: 162147295074 | M9: 612986336282 | N9: 0.4057720128
A10: 331010000000000 | B10: SERVICIOS PERSONALES | C10: 387255360000 | D10: 166000000 | E10: 4783665282 | F10: 392039025282 | G10: 9196456116 | H10: 382842569166 | I10: 42456416453 | J10: 177466384704 | K10: 0.4635492471 | L10: 39841794985 | M10: 154240940947 | N10: 0.4028834653
A11: 331010100000000 | B11: SERVICIOS PERSONALES ASOCIADOS A LA NOMINA | C11: 254218541000 | D11: 100000000 | E11: -2000000 | F11: 254216541000 | G11: 3315253800 | H11: 250901287200 | I11: 32345089450 | J11: 109683346245 | K11: 0.4371573676 | L11: 32358314162 | M11: 109672226399 | N11: 0.437113048
A12: 331010101000000 | B12: SUELDOS PERSONAL DE NOMINA | C12: 141860559000 | F12: 141860559000 | H12: 141860559000 | I12: 11021767778 | J12: 64673799376 | K12: 0.4558969726 | L12: 11025746935 | M12: 64672365186 | N12: 0.4558868627
A13: 331010102000000 | B13: GASTOS DE REPRESENTACION | C13: 73834000 | F13: 73834000 | H13: 73834000 | I13: 6390206 | J13: 26852829 | K13: 0.363691917 | L13: 6390206 | M13: 26852829 | N13: 0.363691917
A14: 331010103000000 | B14: HORAS EXTRAS, DOMINICALES, FESTIVOS, RECARGO NOCTURNO | C14: 17666301000 | F14: 17666301000 | G14: 3315253800 | H14: 14351047200 | I14: 1399179750 | J14: 9219614600 | K14: 0.6424349716 | L14: 1399179750 | M14: 9219614600 | N14: 0.6424349716
A15: 331010104000000 | B15: SUBSIDIO DE TRANSPORTE | C15: 2030387000 | F15: 2030387000 | H15: 2030387000 | I15: 63278300 | J15: 492138214 | K15: 0.2423864091 | L15: 63278300 | M15: 492138214 | N15: 0.2423864091
A16: 331010105000000 | B16: SUBSIDIO DE ALIMENTACION | C16: 9684978000 | F16: 9684978000 | H16: 9684978000 | I16: 767226460 | J16: 4767427984 | K16: 0.4922497484 | L16: 767226460 | M16: 4767427984 | N16: 0.4922497484
A17: 331010106000000 | B17: BONIFICACION POR SERVICIOS PRESTADOS | C17: 435123000 | F17: 435123000 | H17: 435123000 | I17: 23748862 | J17: 125826464 | K17: 0.2891744725 | L17: 23748862 | M17: 125826464 | N17: 0.2891744725
A18: 331010107000000 | B18: PRIMA SEMESTRAL | C18: 16283229000 | D18: 650000000 | E18: 650000000 | F18: 16933229000 | H18: 16933229000 | I18: 16276947768 | J18: 16383554992 | K18: 0.9675387365 | L18: 16276947768 | M18: 16383554992 | N18: 0.9675387365
A19: 331010109000000 | B19: PRIMA DE NAVIDAD | C19: 17204839000 | F19: 17204839000 | H19: 17204839000 | I19: 24835446 | J19: 86277620 | K19: 0.005014729868 | L19: 24835446 | M19: 85253646 | N19: 0.00495521324
A20: 331010110000000 | B20: PRIMA DE VACACIONES | C20: 18158924000 | D20: -550000000 | E20: -550000000 | F20: 17608924000 | H20: 17608924000 | I20: 1619297112 | J20: 5636395520 | K20: 0.3200874466 | L20: 1628542667 | M20: 5631874418 | N20: 0.319830696
A21: 331010111000000 | B21: PRIMA TECNICA | C21: 4536541000 | F21: 4536541000 | H21: 4536541000 | I21: 365240786 | J21: 2109670214 | K21: 0.46503938 | L21: 365240786 | M21: 2109670214 | N21: 0.46503938
A22: 331010112000000 | B22: OTRAS PRIMAS Y BONIFICACIONES | C22: 10001947000 | E22: -102000000 | F22: 9899947000 | H22: 9899947000 | I22: 616633704 | J22: 3690316204 | K22: 0.3727612081 | L22: 616633704 | M22: 3686175624 | N22: 0.3723429655
A23: 331010114000000 | B23: QUINQUENIO | C23: 15353891000 | F23: 15353891000 | H23: 15353891000 | I23: 160543278 | J23: 2120613451 | K23: 0.1381157031 | L23: 160543278 | M23: 2120613451 | N23: 0.1381157031
A24: 331010115000000 | B24: INDEMNIZACIONES LABORALES | C24: 250000000 | F24: 250000000 | H24: 250000000 | J24: 53026845 | K24: 0.21210738 | M24: 53026845 | N24: 0.21210738
A25: 331010116000000 | B25: CONVENCIONES COLECTIVAS O CONVENIOS | C25: 677988000 | F25: 677988000 | H25: 677988000 | J25: 297831932 | K25: 0.4392879107 | M25: 297831932 | N25: 0.4392879107
A26: 331010200000000 | B26: SERVICIOS PERSONALES INDIRECTOS | C26: 55095034000 | D26: 66000000 | E26: 3553665282 | F26: 58648699282 | G26: 5881202316 | H26: 52767496966 | I26: 3578869867 | J26: 28136922329 | K26: 0.5332245027 | L26: 2948845404 | M26: 11232063749 | N26: 0.2128595138
A27: 331010203000000 | B27: HONORARIOS EMPRESA | C27: 48860877000 | D27: 166000000 | E27: 806107121 | F27: 49666984121 | G27: 5494202304 | H27: 44172781817 | I27: 3327792017 | J27: 23570987571 | K27: 0.533608856 | L27: 2677913841 | M27: 6952648200 | N27: 0.1573966573
A28: 331010204000000 | B28: REMUNERACION SERVICIOS TECNICOS | C28: 2244995000 | E28: 50000000 | F28: 2294995000 | G28: 387000012 | H28: 1907994988 | I28: 63152000 | J28: 470571022 | K28: 0.2466311625 | L28: 83005713 | M28: 184051813 | N28: 0.09646346775
A29: 331010299000000 | B29: OTROS GASTOS DE PERSONAL | C29: 3989162000 | D29: -100000000 | E29: 2697558161 | F29: 6686720161 | H29: 6686720161 | I29: 187925850 | J29: 4095363736 | K29: 0.6124622591 | L29: 187925850 | M29: 4095363736 | N29: 0.6124622591
A30: 331010300000000 | B30: APORTES PATRONALES AL SECTOR PRIVADO Y PUBLICO | C30: 77941785000 | E30: 1232000000 | F30: 79173785000 | H30: 79173785000 | I30: 6532457136 | J30: 39646116130 | K30: 0.5007480207 | L30: 4534635419 | M30: 33336650799 | N30: 0.4210566768
A31: 331010301000000 | B31: APORTES PATRONALES AL SECTOR PRIVADO | C31: 54959717000 | E31: 680000000 | F31: 55639717000 | H31: 55639717000 | I31: 4269950309 | J31: 26750091028 | K31: 0.4807733121 | L31: 3093661740 | M31: 22599587009 | N31: 0.4061772458
A32: 331010301010000 | B32: CESANTIAS FONDOS PRIVADOS | C32: 5752702000 | E32: 680000000 | F32: 6432702000 | H32: 6432702000 | J32: 6416334057 | K32: 0.9974555105 | M32: 6416334057 | N32: 0.9974555105
A33: 331010301020000 | B33: PENSIONES FONDOS PRIVADOS | C33: 9728294000 | F33: 9728294000 | H33: 9728294000 | I33: 631524046 | J33: 3829858313 | K33: 0.3936824188 | L33: 621006889 | M33: 3198255083 | N33: 0.3287580621
A34: 331010301030000 | B34: SALUD EPS PRIVADAS | C34: 30202482000 | F34: 30202482000 | H34: 30202482000 | I34: 2391219463 | J34: 12025864458 | K34: 0.3981747082 | L34: 1907830251 | M34: 9749317569 | N34: 0.3227985557
A35: 331010301050000 | B35: CAJA DE COMPENSACION | C35: 9276239000 | F35: 9276239000 | H35: 9276239000 | I35: 1247206800 | J35: 4478034200 | K35: 0.4827424347 | L35: 564824600 | M35: 3235680300 | N35: 0.3488138134
A36: 331010302000000 | B36: APORTES PATRONALES AL SECTOR PUBLICO | C36: 22982068000 | E36: 552000000 | F36: 23534068000 | H36: 23534068000 | I36: 2262506827 | J36: 12896025102 | K36: 0.5479726285 | L36: 1440973679 | M36: 10737063790 | N36: 0.4562349267
A37: 331010302010000 | B37: CESANTIAS FONDOS PÚBLICOS | C37: 2527769000 | E37: 450000000 | F37: 2977769000 | H37: 2977769000 | J37: 2941222386 | K37: 0.9877268472 | M37: 2941180290 | N37: 0.9877127104
A38: 331010302020000 | B38: PENSIONES FONDOS PÚBLICOS | C38: 11903800000 | F38: 11903800000 | H38: 11903800000 | I38: 1039985767 | J38: 6537510895 | K38: 0.5491952902 | L38: 1068688682 | M38: 5612796139 | N38: 0.4715129739
A39: 331010302030000 | B39: SALUD EPS PUBLICOS | C39: 55479000 | E39: 102000000 | F39: 157479000 | H39: 157479000 | I39: 29529560 | J39: 156939620 | K39: 0.9965749084 | L39: 22618397 | M39: 113532160 | N39: 0.7209352358
A40: 331010302040000 | B40: RIESGOS PROFESIONALES SECTOR PUBLICO | C40: 2895755000 | F40: 2895755000 | H40: 2895755000 | I40: 203753100 | J40: 1270148101 | K40: 0.4386241588 | L40: 213110500 | M40: 1066164501 | N40: 0.3681818735
A41: 331010302050000 | B41: ICBF | C41: 3382106000 | F41: 3382106000 | H41: 3382106000 | I41: 593531000 | J41: 1194092400 | K41: 0.3530617905 | L41: 81931900 | M41: 602016200 | N41: 0.1780003938
A42: 331010302060000 | B42: SENA | C42: 2217159000 | F42: 2217159000 | H42: 2217159000 | I42: 395707400 | J42: 796111700 | K42: 0.3590683844 | L42: 54624200 | M42: 401374500 | N42: 0.1810309951
A43: 331020000000000 | B43: GASTOS GENERALES | C43: 535521585000 | D43: 8635539771 | E43: 2851827968 | F43: 538373412968 | G43: 13943923706 | H43: 524429489262 | I43: 58591074710 | J43: 234448695961 | K43: 0.4470547533 | L43: 56918904707 | M43: 179754447672 | N43: 0.3427618991
A44: 331020100000000 | B44: ADQUISICION DE BIENES | C44: 52613709000 | D44: 137768610 | E44: 373892637 | F44: 52987601637 | G44: 1528340504 | H44: 51459261133 | I44: 1039239983 | J44: 18214970771 | K44: 0.3539687584 | L44: 344888468 | M44: 4766715142 | N44: 0.09263085083
A45: 331020101000000 | B45: DOTACION | C45: 6302138000 | E45: 4888632 | F45: 6307026632 | H45: 6307026632 | J45: 228400000 | K45: 0.03621357786 | L45: 10000000 | M45: 10000000 | N45: 0.001585533181
A46: 331020102000000 | B46: MATERIALES Y SUMINISTROS | C46: 19815490000 | D46: 136694466 | E46: 363613340 | F46: 20179103340 | G46: 960214053 | H46: 19218889287 | I46: 102299957 | J46: 1701302359 | K46: 0.08852240801 | L46: 142678194 | M46: 210842261 | N46: 0.01097057472
A47: 331020103000000 | B47: GASTOS DE COMPUTADOR | C47: 22303043000 | F47: 22303043000 | G47: 568126451 | H47: 21734916549 | I47: 936940026 | J47: 12405459668 | K47: 0.5707617805 | M47: 4345220811 | N47: 0.1999189093
A48: 331020104000000 | B48: COMBUSTIBLES, LUBRICANTES Y LLANTAS | C48: 4193038000 | D48: 1074144 | E48: 5390665 | F48: 4198428665 | H48: 4198428665 | J48: 3879808744 | K48: 0.9241097214 | L48: 192210274 | M48: 200652070 | N48: 0.04779218275
A49: 331020200000000 | B49: ADQUISICION DE SERVICIOS | C49: 132207317000 | D49: 24328472 | E49: 2934813335 | F49: 135142130335 | G49: 9394583202 | H49: 125747547133 | I49: 5506025588 | J49: 41734447431 | K49: 0.3318907476 | L49: 3314531990 | M49: 9460134062 | N49: 0.07523116178
A50: 331020201000000 | B50: VIATICOS Y GASTOS DE VIAJE | C50: 1146346000 | F50: 1146346000 | G50: 229269200 | H50: 917076800 | I50: 16248261 | J50: 219623339 | K50: 0.2394819485 | L50: 16248261 | M50: 129623339 | N50: 0.141344039
A51: 331020202000000 | B51: GASTOS DE TRANSPORTE Y COMUNICACIÓN | C51: 14825487000 | E51: 103400400 | F51: 14928887400 | G51: 50000000 | H51: 14878887400 | I51: 533441544 | J51: 5597741488 | K51: 0.3762204349 | L51: 865869675 | M51: 2823832118 | N51: 0.1897878546
A52: 331020203000000 | B52: IMPRESOS Y PUBLICACIONES | C52: 352208000 | D52: 4760000 | E52: 7190000 | F52: 359398000 | G52: 6500000 | H52: 352898000 | I52: 5130283 | J52: 75293889 | K52: 0.2133587864 | L52: 8428963 | M52: 23508409 | N52: 0.06661530811
A53: 331020204000000 | B53: MANTENIMIENTO Y REPARACIONES | C53: 65110277000 | D53: -137768610 | E53: -3234305392 | F53: 61875971608 | G53: 5270159853 | H53: 56605811755 | I53: 3486571040 | J53: 23270155532 | K53: 0.4110912786 | L53: 1271789733 | M53: 3126876283 | N53: 0.05523949195
A54: 331020205000000 | B54: ARRENDAMIENTOS | C54: 11008291000 | F54: 11008291000 | G54: 285066000 | H54: 10723225000 | I54: 1213923909 | J54: 5424078715 | K54: 0.5058253198 | L54: 778116826 | M54: 1145485754 | N54: 0.1068228778
A55: 331020206000000 | B55: SEGUROS | C55: 17325844000 | E55: 5405000000 | F55: 22730844000 | H55: 22730844000 | I55: 10828520 | J55: 1506254109 | K55: 0.06626476822 | L55: 5780350 | M55: 58122244 | N55: 0.002556976943
A56: 331020207000000 | B56: SUMINISTRO DE ALIMENTOS | C56: 3850289000 | E56: 450000000 | F56: 4300289000 | G56: 500000004 | H56: 3800288996
A57: 331020208000000 | B57: SERVICIOS PUBLICOS | C57: 5316766000 | F57: 5316766000 | H57: 5316766000 | I57: 100705016 | J57: 4349349541 | K57: 0.818044191 | L57: 341356067 | M57: 1826769660 | N57: 0.3435866201
A58: 331020209000000 | B58: CAPACITACION | C58: 700001000 | F58: 700001000 | G58: 140000000 | H58: 560001000 | I58: 12150000 | J58: 38988636 | K58: 0.06962243996 | M58: 18199736 | N58: 0.03249947054
A59: 331020210000000 | B59: BIENESTAR E INCENTIVOS | C59: 5047781000 | D59: 157337082 | E59: 157337082 | F59: 5205118082 | G59: 851500000 | H59: 4353618082
A60: 331020211000000 | B60: PROMOCION INSTITUCIONAL | C60: 4797415000 | E60: -48510909 | F60: 4748904091 | G60: 2062088145 | H60: 2686815946 | J60: 194616458 | K60: 0.07243386295 | L60: 4327876 | M60: 46178461 | N60: 0.01718705781
A61: 331020212000000 | B61: INTERESES Y COMISIONES | C61: 702600000 | E61: -300000000 | F61: 402600000 | H61: 402600000 | J61: 329363000 | K61: 0.8180899155 | M61: 2843914 | N61: 0.007063869846
A62: 331020213000000 | B62: SALUD OCUPACIONAL | C62: 1864012000 | E62: 394702154 | F62: 2258714154 | H62: 2258714154 | I62: 127027015 | J62: 654855724 | K62: 0.2899241247 | L62: 22614239 | M62: 184567144 | N62: 0.08171336938
A63: 331020214000000 | B63: PROGRAMAS Y CONVENIOS INSTITUCIONES | C63: 160000000 | F63: 160000000 | H63: 160000000 | J63: 74127000 | K63: 0.46329375 | M63: 74127000 | N63: 0.46329375
A64: 331020300000000 | B64: OTROS GASTOS GENERALES | C64: 350700559000 | D64: 8473442689 | E64: -456878004 | F64: 350243680996 | G64: 3021000000 | H64: 347222680996 | I64: 52045809139 | J64: 174499277759 | K64: 0.5025572559 | L64: 53259484249 | M64: 165527598468 | N64: 0.4767188537
A65: 331020301000000 | B65: IMPUESTOS, TASAS Y MULTAS | C65: 328691060000 | D65: 8644202689 | E65: -667947665 | F65: 328023112335 | H65: 328023112335 | I65: 51913780900 | J65: 172342694869 | K65: 0.5253980235 | L65: 52988177767 | M65: 164724478882 | N65: 0.5021733917
A66: 331020302000000 | B66: SENTENCIAS JUDICIALES | C66: 750000000 | F66: 750000000 | H66: 750000000 | J66: 8254610 | K66: 0.01100614667 | M66: 8254610 | N66: 0.01100614667
A67: 331020399000000 | B67: OTROS GASTOS GENERALES | C67: 21259499000 | D67: -170760000 | E67: 211069661 | F67: 21470568661 | G67: 3021000000 | H67: 18449568661 | I67: 132028239 | J67: 2148328280 | K67: 0.1164432795 | L67: 271306482 | M67: 794864976 | N67: 0.04308311975
A68: 331030000000000 | B68: TRANSFERENCIAS CORRIENTES | C68: 423259304000 | D68: 1275779668 | E68: -5470411577 | F68: 417788892423 | H68: 417788892423 | I68: 74868340004 | J68: 190228647908 | K68: 0.4553224161 | L68: 52652945396 | M68: 167660326028 | N68: 0.4013039338
A69: 331030100000000 | B69: TRANSFERENCIAS AL SECTOR PUBLICO | C69: 141264690000 | F69: 141264690000 | H69: 141264690000 | I69: 25779916364 | J69: 60000000000 | K69: 0.4247345887 | L69: 25779916364 | M69: 60000000000 | N69: 0.4247345887
A70: 331030100000000 | B70: TRANSFERENCIAS AL SECTOR PUBLICO | C70: 141264690000 | F70: 141264690000 | H70: 141264690000 | I70: 25779916364 | J70: 60000000000 | K70: 0.4247345887 | L70: 25779916364 | M70: 60000000000 | N70: 0.4247345887
A71: 331030300000000 | B71: TRANSFERENCIAS DE PREVISION Y SEGURIDAD SOCIAL | C71: 281294614000 | D71: 1019473907 | E71: -5726717338 | F71: 275567896662 | H71: 275567896662 | I71: 49078761300 | J71: 130113203449 | K71: 0.4721638661 | L71: 26863366692 | M71: 107544881569 | N71: 0.3902663658
A72: 331030301000000 | B72: PENSIONES Y JUBILACIONES | C72: 194666163000 | E72: -1130000000 | F72: 193536163000 | H72: 193536163000 | I72: 26313779586 | J72: 95871235627 | K72: 0.4953660036 | L72: 26391849743 | M72: 95738004203 | N72: 0.4946775978
A73: 331030302000000 | B73: CESANTIAS | C73: 19026289000 | F73: 19026289000 | H73: 19026289000 | I73: 4487555136 | J73: 8462826544 | K73: 0.4447964889 | L73: 387716849 | M73: 4305162666 | N73: 0.2262744283
A74: 331030303000000 | B74: OTRAS TRANSFERENCIAS DE PREVISION SOCIAL | C74: 67602162000 | D74: 1019473907 | E74: -4596717338 | F74: 63005444662 | H74: 63005444662 | I74: 18277426578 | J74: 25779141278 | K74: 0.409157358 | L74: 83800100 | M74: 7501714700 | N74: 0.1190645466
A75: 331030303010000 | B75: FONDO DE VIVIENDA | C75: 21832635000 | D75: 1019473907 | E75: 1019473907 | F75: 22852108907 | H75: 22852108907 | J75: 7000000000 | K75: 0.3063174619 | M75: 7000000000 | N75: 0.3063174619
A76: 331030303020000 | B76: PAGOS SERVICIOS MEDICOS CONVENCIONALES | C76: 45769527000 | E76: -5616191245 | F76: 40153335755 | H76: 40153335755 | I76: 18277426578 | J76: 18779141278 | K76: 0.4676857084 | L76: 83800100 | M76: 501714700 | N76: 0.01249496936
A77: 331030400000000 | B77: OTRAS TRANSFERENCIAS | C77: 700000000 | D77: 256305761 | E77: 256305761 | F77: 956305761 | H77: 956305761 | I77: 9662340 | J77: 115444459 | K77: 0.1207191922 | L77: 9662340 | M77: 115444459 | N77: 0.1207191922
A78: 331030401000000 | B78: DESTINATARIOS DE OTRAS TRANSFERENCIAS | C78: 700000000 | D78: 256305761 | E78: 256305761 | F78: 956305761 | H78: 956305761 | I78: 9662340 | J78: 115444459 | K78: 0.1207191922 | L78: 9662340 | M78: 115444459 | N78: 0.1207191922
A79: 331040000000000 | B79: CUENTAS POR PAGAR FUNCIONAMIENTO | C79: 177693681000 | E79: 7912237766 | F79: 185605918766 | H79: 185605918766 | I79: -1072462950 | J79: 181931081027 | K79: 0.9802008591 | L79: 12733649986 | M79: 111330621635 | N79: 0.5998225831
A80: 332000000000000 | B80: GASTOS DE OPERACION | C80: 257596808000 | D80: 28156618935 | E80: 28156618935 | F80: 285753426935 | H80: 285753426935 | I80: 729429639 | J80: 174487748870 | K80: 0.6106234691 | L80: 11623715701 | M80: 85179136486 | N80: 0.2980861416
A81: 332010000000000 | B81: GASTOS DE COMERCIALIZACION | C81: 97177505000 | D81: 28156618935 | E81: 275501616 | F81: 97453006616 | H81: 97453006616 | I81: 750574612 | J81: 15884933188 | K81: 0.1630009554 | L81: 1438602312 | M81: 3376152164 | N81: 0.03464389947
A82: 332010100000000 | B82: COMPRA DE BIENES PARA LA VENTA | C82: 3037881000 | F82: 3037881000 | H82: 3037881000
A83: 332010101000000 | B83: MEDIDORES | C83: 3037881000 | F83: 3037881000 | H83: 3037881000
A84: 332010200000000 | B84: COMPRA DE SERVICIOS PARA LA VENTA | C84: 10866852000 | F84: 10866852000 | H84: 10866852000 | J84: 7177265159 | K84: 0.6604732593 | L84: 1116141942 | M84: 1295484086 | N84: 0.1192142937
A85: 332010201000000 | B85: GESTION COMERCIAL | C85: 10866852000 | F85: 10866852000 | H85: 10866852000 | J85: 7177265159 | K85: 0.6604732593 | L85: 1116141942 | M85: 1295484086 | N85: 0.1192142937
A86: 332010500000000 | B86: OTROS GASTOS DE COMERCIALIZACION | C86: 83272772000 | D86: 28156618935 | E86: 275501616 | F86: 83548273616 | H86: 83548273616 | I86: 750574612 | J86: 8707668029 | K86: 0.1042231952 | L86: 322460370 | M86: 2080668078 | N86: 0.02490378302
A87: 332010501000000 | B87: MANTENIMIENTO Y MATERIALES OPERACION INFRAESTRUCTURA | C87: 78122772000 | D87: 28156618935 | E87: -6127641 | F87: 78116644359 | H87: 78116644359 | I87: 750574612 | J87: 8707668029 | K87: 0.1114700727 | L87: 322460370 | M87: 2080668078 | N87: 0.02663540011
A88: 332010502000000 | B88: COMERCIALIZACION DE ENERGIA | C88: 150000000 | F88: 150000000 | H88: 150000000
A89: 332010503000000 | B89: FONDO ATENCION EMERGENCIAS | C89: 4000000000 | E89: 281629257 | F89: 4281629257 | H89: 4281629257
A90: 332010504000000 | B90: FONDO OBLIGACIONES CONTIGENTES | C90: 1000000000 | F90: 1000000000 | H90: 1000000000
A91: 332020000000000 | B91: GASTOS DE PRODUCCION | C91: 90897005000 | F91: 90897005000 | H91: 90897005000 | J91: 62220572052 | K91: 0.6845172957 | L91: 4565152577 | M91: 28269513441 | N91: 0.3110059945
A92: 332020100000000 | B92: INDUSTRIAL | C92: 90897005000 | F92: 90897005000 | H92: 90897005000 | J92: 62220572052 | K92: 0.6845172957 | L92: 4565152577 | M92: 28269513441 | N92: 0.3110059945
A93: 332020102000000 | B93: ENERGIA PARA BOMBEO | C93: 49926839000 | F93: 49926839000 | H93: 49926839000 | J93: 49115736921 | K93: 0.9837541872 | L93: 3952624539 | M93: 23940303822 | N93: 0.4795077017
A94: 332020103000000 | B94: TASA POR USO DE AGUA | C94: 11918982000 | F94: 11918982000 | H94: 11918982000 | J94: 3582064781 | K94: 0.3005344568 | M94: 3582064781 | N94: 0.3005344568
A95: 332020109000000 | B95: PRODUCTOS QUIMICOS | C95: 29051184000 | F95: 29051184000 | H95: 29051184000 | J95: 9522770350 | K95: 0.3277928483 | L95: 612528038 | M95: 747144838 | N95: 0.02571822333
A96: 332030000000000 | B96: CUENTAS POR PAGAR OPERACIÓN | C96: 69522298000 | E96: 27881117319 | F96: 97403415319 | H96: 97403415319 | I96: -21144973 | J96: 96382243630 | K96: 0.9895160587 | L96: 5619960812 | M96: 53533470881 | N96: 0.5496056859
A97: 333000000000000 | B97: SERVICIO DE LA DEUDA | C97: 100538280000 | D97: 23105484120 | E97: 23105484120 | F97: 123643764120 | H97: 123643764120 | I97: 5464000 | J97: 81368679153 | K97: 0.6580896314 | L97: 5464000 | M97: 74197785295 | N97: 0.6000932261
A98: 333010000000000 | B98: DEUDA INTERNA | C98: 90538280000 | F98: 90538280000 | H98: 90538280000 | J98: 81106799040 | K98: 0.8958288035 | M98: 73935905182 | N98: 0.8166259088
A99: 333010100000000 | B99: AMORTIZACION | C99: 74444445000 | F99: 74444445000 | H99: 74444445000 | J99: 74444445000 | K99: 1 | M99: 70000000000 | N99: 0.9402985004
A100: 333010200000000 | B100: INTERESES | C100: 16073885000 | F100: 16073885000 | H100: 16073885000 | J100: 6643354500 | K100: 0.4133011092 | M100: 3935905182 | N100: 0.2448633409
A101: 333010300000000 | B101: COMISIONES Y OTROS | C101: 19950000 | F101: 19950000 | H101: 19950000 | J101: 18999540 | K101: 0.9523578947
A102: 333030000000000 | B102: BONOS PENSIONALES | C102: 10000000000 | F102: 10000000000 | H102: 10000000000 | I102: 5464000 | J102: 261880113 | K102: 0.0261880113 | L102: 5464000 | M102: 261880113 | N102: 0.0261880113
A103: 333050000000000 | B103: PASIVOS CONTINGENTES | D103: 23105484120 | E103: 23105484120 | F103: 23105484120 | H103: 23105484120
A104: 334000000000000 | B104: INVERSION | C104: 3280728525000 | D104: -46682896179 | E104: -136760665179 | F104: 3143967859821 | H104: 3143967859821 | I104: -209110622 | J104: 2049965341078 | K104: 0.6520312651 | L104: 36147915847 | M104: 226766111288 | N104: 0.07212736306
A105: 334010000000000 | B105: DIRECTA | C105: 1740814677000 | E105: 25532895027 | F105: 1766347572027 | H105: 1766347572027 | J105: 908623737947 | K105: 0.5144082356 | L105: 17753859586 | M105: 38048639141 | N105: 0.02154085625
A106: 334011500000000 | B106: BOGOTA MEJOR PARA TODOS | C106: 1740814677000 | D106: -857723834080 | E106: -832190939053 | F106: 908623737947 | H106: 908623737947 | J106: 908623737947 | K106: 1 | L106: 17753859586 | M106: 38048639141 | N106: 0.04187502214
A107: 334011502000000 | B107: PILAR DEMOCRACIA URBANA | C107: 1527980398000 | D107: -681277465313 | E107: -684182715292 | F107: 843797682708 | H107: 843797682708 | J107: 843797682708 | K107: 1 | L107: 12558815380 | M107: 23767504198 | N107: 0.02816730205
A108: 334011502130000 | B108: INFRAESTRUCTURA PARA EL DESARROLLO DEL HABITAT | C108: 1527980398000 | D108: -681277465313 | E108: -684182715292 | F108: 843797682708 | H108: 843797682708 | J108: 843797682708 | K108: 1 | L108: 12558815380 | M108: 23767504198 | N108: 0.02816730205
A109: 334011502130133 | B109: INFRAESTRUCTURA PARA EL DESARROLLO DEL HABITAT | C109: 1527980398000 | D109: -681277465313 | E109: -684182715292 | F109: 843797682708 | H109: 843797682708 | J109: 843797682708 | K109: 1 | L109: 12558815380 | M109: 23767504198 | N109: 0.02816730205
A110: 334011502130133000019 | B110: 0019 - CONSTRUCCIÓN DE REDES LOCALES PARA EL SERVICIO DE ALC | C110: 29559352000 | D110: -14893526586 | E110: -14150233546 | F110: 15409118454 | H110: 15409118454 | J110: 15409118454 | K110: 1 | L110: 1698249142 | M110: 2244758134 | N110: 0.1456772586
A111: 334011502130133000020 | B111: 0020 - CONSTRUCCIÓN DE REDES LOCALES PARA EL SERVICIO DE ALC | C111: 30878351000 | D111: -11473697032 | E111: -12894440352 | F111: 17983910648 | H111: 17983910648 | J111: 17983910648 | K111: 1 | L111: 289951934 | M111: 2141455597 | N111: 0.119076192
A112: 334011502130133000021 | B112: 0021 - CONSTRUCCIÓN DEL SISTEMA TRONCAL Y SECUNDARIO DE ALCA | C112: 9912330000 | D112: -7238050076 | E112: -9906856073 | F112: 5473927 | H112: 5473927 | J112: 5473927 | K112: 1 | M112: 5473927 | N112: 1
A113: 334011502130133000022 | B113: 0022 - CONSTRUCCIÓN DEL SISTEMA TRONCAL Y SECUNDARIO DE ALCA | D113: -183697939 | E113: 971698303 | F113: 971698303 | H113: 971698303 | J113: 971698303 | K113: 1 | L113: 343064947 | M113: 371331089 | N113: 0.382146483
A114: 334011502130133000050 | B114: 0050 - RENOVACIÓN, REHABILITACIÓN O REPOSICIÓN DE LOS SISTEM | C114: 384197759000 | D114: -115164266438 | E114: -138314111004 | F114: 245883647996 | H114: 245883647996 | J114: 245883647996 | K114: 1 | L114: 120000000 | M114: 774546354 | N114: 0.003150052313
A115: 334011502130133000051 | B115: 0051 - RENOVACIÓN, REHABILITACIÓN O REPOSICIÓN DEL SISTEMA T | C115: 191033782000 | D115: -106570071370 | E115: -106011923308 | F115: 85021858692 | H115: 85021858692 | J115: 85021858692 | K115: 1 | L115: 6049220992 | M115: 9964002675 | N115: 0.1171934233
A116: 334011502130133000052 | B116: 0052 - RENOVACIÓN, REHABILITACIÓN O REPOSICIÓN DEL SISTEMA T | C116: 94953962000 | D116: -55972483846 | E116: -51848784401 | F116: 43105177599 | H116: 43105177599 | J116: 43105177599 | K116: 1 | L116: 3624232286 | M116: 4948456259 | N116: 0.1147995794
A117: 334011502130133000053 | B117: 0053 - RENOVACIÓN, REHABILITACIÓN O REPOSICIÓN DEL SISTEMA T | C117: 27457018000 | D117: -27292703329 | E117: -25477784163 | F117: 1979233837 | H117: 1979233837 | J117: 1979233837 | K117: 1 | M117: 1408817245 | N117: 0.7117992926
A118: 334011502130133000054 | B118: 0054 - ACCIONES PARA EL SANEAMIENTO DEL RÍO BOGOTÁ | C118: 199958252000 | D118: -809299004 | E118: -597474924 | F118: 199360777076 | H118: 199360777076 | J118: 199360777076 | K118: 1
A119: 334011502130133000068 | B119: 0068 - CONSTRUCCIÓN, RENOVACIÓN, REHABILITACIÓN O REPOSICIÓN | C119: 133991235000 | D119: -49756249071 | E119: -36875880127 | F119: 97115354873 | H119: 97115354873 | J119: 97115354873 | K119: 1 | L119: 75446300 | M119: 109272636 | N119: 0.001125183923
A120: 334011502130133000081 | B120: 0081 - CORREDORES AMBIENTALES | C120: 335819610000 | D120: -240929857197 | E120: -240009163787 | F120: 95810446213 | H120: 95810446213 | J120: 95810446213 | K120: 1 | L120: 73737891 | M120: 1316109060 | N120: 0.01373659253
A121: 334011502130133007334 | B121: 7334 - CONSTRUCCIÓN Y EXPANSIÓN DEL SISTEMA DE ABASTECIMIENT | C121: 76238903000 | D121: -44096488781 | E121: -41528652705 | F121: 34710250295 | H121: 34710250295 | J121: 34710250295 | K121: 1 | L121: 158817212 | M121: 208400119 | N121: 0.006003993553
A122: 334011502130133007338 | B122: 7338 - CONSTRUCCIÓN DE REDES LOCALES PARA EL SERVICIO DE ACU | C122: 13979844000 | D122: -6897074644 | E122: -7539109205 | F122: 6440734795 | H122: 6440734795 | J122: 6440734795 | K122: 1 | L122: 126094676 | M122: 274881103 | N122: 0.04267853153
A123: 334011506000000 | B123: EJE TRANSV. SOSTENIB. AMBIENTAL BASADA EFICIENCIA ENERGETICA | C123: 65123144000 | D123: -28825790999 | E123: -387645993 | F123: 64735498007 | H123: 64735498007 | J123: 64735498007 | K123: 1 | L123: 5195044206 | M123: 14281134943 | N123: 0.2206074779
A124: 334011506380000 | B124: RECUPERACION Y MANEJO ESTRUCTURA ECOLOGICA PRINCIPAL | C124: 11219688000 | D124: -16635777773 | E124: 11266685341 | F124: 22486373341 | H124: 22486373341 | J124: 22486373341 | K124: 1 | L124: 78435576 | M124: 9135775774 | N124: 0.4062805342
A125: 334011506380177 | B125: CONSOLIDACION DE LA ESTRUCTURA ECOLOGICA PRINCIPAL | C125: 11219688000 | D125: -16635777773 | E125: 11266685341 | F125: 22486373341 | H125: 22486373341 | J125: 22486373341 | K125: 1 | L125: 78435576 | M125: 9135775774 | N125: 0.4062805342
A126: 334011506380177007341 | B126: 7341 - ADEC.HIDRAULICA RECUP.AMB.HUMED,QUEBRADAS,RIOS CUENCA | C126: 11219688000 | D126: -16635777773 | E126: 11266685341 | F126: 22486373341 | H126: 22486373341 | J126: 22486373341 | K126: 1 | L126: 78435576 | M126: 9135775774 | N126: 0.4062805342
A127: 334011506390000 | B127: AMBIENTE SANO PARA LA EQUIDAD Y DISFRUTE DEL CIUDADANO | C127: 53903456000 | D127: -12190013226 | E127: -11654331334 | F127: 42249124666 | H127: 42249124666 | J127: 42249124666 | K127: 1 | L127: 5116608630 | M127: 5145359169 | N127: 0.1217861721
A128: 334011506390179 | B128: AMBIENTE SANO | C128: 53903456000 | D128: -12190013226 | E128: -11654331334 | F128: 42249124666 | H128: 42249124666 | J128: 42249124666 | K128: 1 | L128: 5116608630 | M128: 5145359169 | N128: 0.1217861721
A129: 334011506390179000082 | B129: 0082 - PLAN DE SANEAMIENTO Y MANEJO DE VERTIMIENTOS | C129: 53903456000 | D129: -12190013226 | E129: -11654331334 | F129: 42249124666 | H129: 42249124666 | J129: 42249124666 | K129: 1 | L129: 5116608630 | M129: 5145359169 | N129: 0.1217861721
A130: 334011507000000 | B130: EJE TRANSVERSAL GOBIERNO LEGITIMO, FORT. LOCAL Y EFICIENTE | C130: 147711135000 | D130: -147620577768 | E130: -147620577768 | F130: 90557232 | H130: 90557232 | J130: 90557232 | K130: 1
A131: 334011507420000 | B131: TRANSPARENCIA, GESTION PUBLICA Y SERVICIO A LA CIUDADANIA | C131: 147711135000 | D131: -147620577768 | E131: -147620577768 | F131: 90557232 | H131: 90557232 | J131: 90557232 | K131: 1
A132: 334011507420185 | B132: FORTALECIMIENTO A LA GESTION PUBLICA EFECTIVA Y EFICIENTE | C132: 147711135000 | D132: -147620577768 | E132: -147620577768 | F132: 90557232 | H132: 90557232 | J132: 90557232 | K132: 1
A133: 334011507420185000055 | B133: 0055 - FORTALECIMIENTO ADMINISTRATIVO Y OPERATIVO EMPRESARIA | C133: 147711135000 | D133: -147620577768 | E133: -147620577768 | F133: 90557232 | H133: 90557232 | J133: 90557232 | K133: 1
A134: 334334011600000000011600000000 | B134: UN NUEVO CONTRATO SOCIAL Y AMBIENTAL BOGOTÁ DEL SIGLO XXI | D134: 857723834080 | E134: 857723834080 | F134: 857723834080 | H134: 857723834080
A135: 334011602000000 | B135: CAMBIAR HÁBITOS DE VIDA ADAPTARNOS Y MITIGAR CRISIS CLIMATIC | D135: 694842405065 | E135: 694842405065 | F135: 694842405065 | H135: 694842405065
A136: 334011602060000 | B136: RESTAURACIÓN, PRESERVACIÓN Y MANTENIMIENTO AMBIENTE NATURAL | D136: 450098604792 | E136: 450098604792 | F136: 450098604792 | H136: 450098604792
A137: 334011602062800 | B137: BOGOTÁ PROTECTORA DE SUS RECURSOS NATURALES | D137: 252263810838 | E137: 252263810838 | F137: 252263810838 | H137: 252263810838
A138: 334011602062800147341 | B138: 7341 -ADECUACIÓN HIDRÁULICA Y RECUPERACIÓN AMBIENTAL DE HUME | D138: 13288516258 | E138: 13288516258 | F138: 13288516258 | H138: 13288516258
A139: 334011602062800140081 | B139: 0081 - CONSTRUCCIÓN DE CORREDORES AMBIENTALES EN EL ÁREA DE | D139: 238975294580 | E139: 238975294580 | F139: 238975294580 | H139: 238975294580
A140: 334011602063600 | B140: MANEJO Y SANEAMIENTO DE LOS CUERPOS DE AGUA | D140: 197834793954 | E140: 197834793954 | F140: 197834793954 | H140: 197834793954
A141: 334011602063600190051 | B141: 0051 - RENOVACIÓN Y/O REPOSICIÓN DEL SISTEMA TRONCAL, SECUND | D141: 100280551200 | E141: 100280551200 | F141: 100280551200 | H141: 100280551200
A142: 334011602063600190052 | B142: 0052 - RENOVACIÓN Y/O REPOSICIÓN DEL SISTEMA TRONCAL, SECUND | D142: 53780470398 | E142: 53780470398 | F142: 53780470398 | H142: 53780470398
A143: 334011602063600190053 | B143: 0053 - RENOVACIÓN Y/O REPOSICIÓN DEL SISTEMA TRONCAL, SECUND | D143: 27292703329 | E143: 27292703329 | F143: 27292703329 | H143: 27292703329
A144: 334011602063600190082 | B144: 0082 - DESARROLLO DEL PLAN DE SANEAMIENTO Y MANEJO DE VERTIM | D144: 16481069027 | E144: 16481069027 | F144: 16481069027 | H144: 16481069027
A145: 334011602070000 | B145: CUIDADO Y MANTENIMIENTO DEL AMBIENTE CONSTRUIDO | D145: 244743800273 | E145: 244743800273 | F145: 244743800273 | H145: 244743800273
A146: 334011602073700 | B146: PROVISIÓN Y MEJORAMIENTO DE SERVICIOS PÚBLICOS | D146: 244743800273 | E146: 244743800273 | F146: 244743800273 | H146: 244743800273
A147: 334011602073700190019 | B147: 0019 - CONSTRUCCIÓN DE REDES LOCALES PARA SERVICIO DE ALCANT | D147: 14893526582 | E147: 14893526582 | F147: 14893526582 | H147: 14893526582
A148: 334011602073700190020 | B148: 0020 - CONSTRUCCIÓN DE REDES LOCALES PARA EL SERVICIO DE ALC | D148: 11473697029 | E148: 11473697029 | F148: 11473697029 | H148: 11473697029
A149: 334011602073700190021 | B149: 0021 -CONSTRUCCIÓN DEL SISTEMA TRONCAL Y SECUNDARIO DE ALCAN | D149: 7238050076 | E149: 7238050076 | F149: 7238050076 | H149: 7238050076
A150: 334011602073700190022 | B150: 0022 - CONSTRUCCIÓN DEL SISTEMA TRONCAL Y SECUNDARIO DE ALCA | D150: 2601162493 | E150: 2601162493 | F150: 2601162493 | H150: 2601162493
A151: 334011602073700190050 | B151: 0050 - RENOVACIÓN Y/O REPOSICIÓN DE LOS SISTEMAS DE ABASTECI | D151: 114381761901 | E151: 114381761901 | F151: 114381761901 | H151: 114381761901
A152: 334011602073700190054 | B152: 0054 - DESARROLLO DE ACCIONES PARA EL SANEAMIENTO DEL RÍO BO | D152: 211824080 | E152: 211824080 | F152: 211824080 | H152: 211824080
A153: 334011602073700190068 | B153: 0068 - ADECUACIÓN DE LAS REDES ASOCIADAS A LA INFRAESTRUCTUR | D153: 46000941493 | E153: 46000941493 | F153: 46000941493 | H153: 46000941493
A154: 334011602073700197334 | B154: 7334 - CONSTRUCCIÓN Y EXPANSIÓN DEL SISTEMA DE ABASTECIMIENT | D154: 38738275704 | E154: 38738275704 | F154: 38738275704 | H154: 38738275704
A155: 334011602073700197338 | B155: 7338 - CONSTRUCCIÓN DE REDES LOCALES PARA EL SERVICIO DE ACU | D155: 9204560915 | E155: 9204560915 | F155: 9204560915 | H155: 9204560915
A156: 334011605000000 | B156: CONSTRUIR BOGOTÁ - REGIÓN GOB. ABIERTO, TRANS Y CIUD CONSCIE | D156: 162881429015 | E156: 162881429015 | F156: 162881429015 | H156: 162881429015
A157: 334011605170000 | B157: INTEGRACIÓN REGIONAL | D157: 162881429015 | E157: 162881429015 | F157: 162881429015 | H157: 162881429015
A158: 334011605175200 | B158: INTEGRACIÓN REGIONAL, DISTRITAL Y LOCAL | D158: 162881429015 | E158: 162881429015 | F158: 162881429015 | H158: 162881429015
A159: 334011605175200300055 | B159: 0055 -DESARROLLO DE ACCIONES PARA EL FORTALECIMIENTO ADMINIS | D159: 162881429015 | E159: 162881429015 | F159: 162881429015 | H159: 162881429015
A160: 334020000000000 | B160: TRANSFERENCIAS PARA INVERSION | C160: 295508851000 | D160: 57265249372 | E160: -56339238030 | F160: 239169612970 | H160: 239169612970 | J160: 5000000000 | K160: 0.02090566581 | M160: 5000000000 | N160: 0.02090566581
A161: 334020200000000 | B161: EMPRESAS DISTRITALES | C161: 295508851000 | D161: 57265249372 | E161: -56339238030 | F161: 239169612970 | H161: 239169612970 | J161: 5000000000 | K161: 0.02090566581 | M161: 5000000000 | N161: 0.02090566581
A162: 334030000000000 | B162: CUENTAS POR PAGAR | C162: 1244404997000 | D162: -103948145551 | E162: -105954322176 | F162: 1138450674824 | H162: 1138450674824 | I162: -209110622 | J162: 1136341603131 | K162: 0.9981474193 | L162: 18394056261 | M162: 183717472147 | N162: 0.1613749952
A163: 340000000000000 | B163: DISPONIBILIDAD FINAL | C163: 677122058000 | D163: 115754975302 | E163: 115754975302 | F163: 792877033302 | H163: 792877033302
B169: JULIANA CASTRO BUITRAGO | F169: DIANA GISELA PARRA CORREA
B170: Directora Presupuesto | F170: Gerente Corporativa Financiera

Sheet Graph (hidden)
G1: FEP8Qry3
F2: Dir. SIE - BI Rev 2014.01
F5: Information
F6: Autor | G6: RAGARCIA | I6: Últ.actual.pantalla | J6: 02/07/2014 09:16:31
F7: Usuario actual | G7: AOCAMPOR | I7: Fe.clave | J7: 02/07/2014
F8: Modificado por | G8: RAGARCIA | I8: Hora de modificación | J8: 12/06/2014 15:20:31
F9: InfoSitio | G9: 0PU_C02 | I9: Actualidad de datos | J9: 02/07/2014 00:39:33
F10: Nombre técnico query | G10: ZPU_C02_Q4001 | I10: Actualidad de datos (fecha) | J10: 02/07/2014
F11: Descripción query | G11: EJECUCION PRESUPUESTAL DE GASTOS - SECRETARIA DE HACIENDA | I11: Actualidad de los datos (hora) | J11: 00:39:33
C14: Filter
C15: Cta Entidades PSM | D15: GASTOS, DISPONIBILIDAD FINAL
C16: Ratios

Sheet V_Futuras_2021-2023
A2: EMPRESA DE ACUEDUCTO ALCANTARILLADO DE BOGOTA | M2: EMPRESA DE ACUEDUCTO ALCANTARILLADO DE BOGOTA | Y2: EMPRESA DE ACUEDUCTO ALCANTARILLADO DE BOGOTA | AK2: EMPRESA DE ACUEDUCTO ALCANTARILLADO DE BOGOTA
A3: EJECUCION PRESUPUESTAL DE VIGENCIAS FUTURAS | M3: EJECUCION PRESUPUESTAL DE VIGENCIAS FUTURAS | Y3: EJECUCION PRESUPUESTAL DE VIGENCIAS FUTURAS | AK3: EJECUCION PRESUPUESTAL DE VIGENCIAS FUTURAS
A4: A 30 JUNIO DE 2020 | M4: A 30 JUNIO DE 2020 | Y4: A 30 JUNIO DE 2020 | AK4: A 30 JUNIO DE 2020
A6: 2021 | M6: 2022 | Q6: 2020 | Y6: 2023 | AK6: 2021-2023
A7: CODIGO SECRETARIA DE HACIENDA | B7: CONCEPTO | C7: PRESUPUESTO INICIAL | D7: MODIFICACIONES MES | E7: MODIFICACIONES ACUMULADAS | F7: PRESUPUESTO DEFINITIVO | G7: COMPROMISOS MES | H7: COMPROMISOS ACUMULADOS | I7: % EJEC PPTAL | J7: DISPONIBILIDADES MES | K7: DISPONIBILIDADES ACUMULADAS | L7: SALDO DISPONIBLE | M7: CODIGO SECRETARIA DE HACIENDA | N7: CONCEPTO | O7: PRESUPUESTO INICIAL | P7: MODIFICACIONES MES | Q7: MODIFICACIONES ACUMULADAS | R7: PRESUPUESTO DEFINITIVO | S7: COMPROMISOS MES | T7: COMPROMISOS ACUMULADOS | U7: % EJEC PPTAL | V7: DISPONIBILIDADES MES | W7: DISPONIBILIDADES ACUMULADAS | X7: SALDO DISPONIBLE | Y7: CODIGO SECRETARIA DE HACIENDA | Z7: CONCEPTO | AA7: PRESUPUESTO INICIAL | AB7: MODIFICACIONES MES | AC7: MODIFICACIONES ACUMULADAS | AD7: PRESUPUESTO DEFINITIVO | AE7: COMPROMISOS MES | AF7: COMPROMISOS ACUMULADOS | AG7: % EJEC PPTAL | AH7: DISPONIBILIDADES MES | AI7: DISPONIBILIDADES ACUMULADAS | AJ7: SALDO DISPONIBLE | AK7: CODIGO SECRETARIA DE HACIENDA | AL7: CONCEPTO | AM7: Presupuesto Inicial VF Total | AN7: Modificaciones mes VF Total | AO7: Modificaciones Acumuladas VF Total | AP7: Presupuesto Definitivo VF Total | AQ7: Compromisos mes Total | AR7: Compromisos Acumulados Total | AS7: % EJEC PPTAL | AT7: Disponibilidades mes Total | AU7: Disponibilidades Acumuladas Total | AV7: Saldo Disponible Total
A8: 330000000000000 | B8: GASTOS | C8: =C9+C17 -> 382346750258 | D8: =D9+D17 -> 0 | E8: 72949819971 | F8: 455296570229 | G8: 0 | H8: 378368106509 | I8: =H8/F8 -> 0.8310365842 | J8: =J9+J17 -> 33066769869 | K8: =K9+K17 -> 35689728692 | L8: =L9+L17 -> 41238735028 | M8: 330000000000000 | N8: GASTOS | O8: =O9+O17 -> 39259233760 | P8: =P9+P17 -> 0 | Q8: =Q9+Q17 -> 58056449321 | R8: =R9+R17 -> 97315683081 | S8: =S9+S17 -> 0 | T8: =T9+T17 -> 39259233760 | U8: =T8/R8 -> 0.4034214478 | V8: =V9+V17 -> 27646730892 | W8: =W9+W17 -> 27646730892 | X8: =X9+X17 -> 30409718429 | Y8: 330000000000000 | Z8: GASTOS | AA8: =AA9+AA17 -> 0 | AB8: =AB9+AB17 -> 0 | AC8: =AC9+AC17 -> 1062015124 | AD8: =AD9+AD17 -> 1062015124 | AE8: =AE9+AE17 -> 0 | AF8: =AF9+AF17 -> 0 | AG8: =AF8/AD8 -> 0 | AH8: =AH9+AH17 -> 1062015124 | AI8: =AI9+AI17 -> 1062015124 | AJ8: =AJ9+AJ17 -> 0 | AK8: 330000000000000 | AL8: GASTOS | AM8: =AM9+AM17 -> 421605984018 | AN8: =AN9+AN17 -> 0 | AO8: =AO9+AO17 -> 132068284416 | AP8: =AP9+AP17 -> 553674268434 | AQ8: =AQ9+AQ17 -> 0 | AR8: =AR9+AR17 -> 417627340269 | AS8: =AR8/AP8 -> 0.7542834552 | AT8: =AT9+AT17 -> 61775515885 | AU8: =AU9+AU17 -> 64398474708 | AV8: =AV9+AV17 -> 71648453457
A9: 331000000000000 | B9: GASTOS DE FUNCIONAMIENTO | C9: =C10+C13 -> 0 | D9: =D10+D13 -> 0 | E9: 67004089941 | F9: 67004089941 | G9: 0 | H9: 0 | I9: =H9/F9 -> 0 | J9: =J10+J13 -> 30574080784 | K9: =K10+K13 -> 30574080784 | L9: =L10+L13 -> 36430009157 | M9: 331000000000000 | N9: GASTOS DE FUNCIONAMIENTO | O9: =O10+O13 -> 0 | P9: =P10+P13 -> 0 | Q9: =Q10+Q13 -> 55458049988 | R9: =R10+R13 -> 55458049988 | S9: =S10+S13 -> 0 | T9: =T10+T13 -> 0 | U9: =T9/R9 -> 0 | V9: =V10+V13 -> 25099709024 | W9: =W10+W13 -> 25099709024 | X9: =X10+X13 -> 30358340964 | Y9: 331000000000000 | Z9: GASTOS DE FUNCIONAMIENTO | AA9: =AA10+AA13 -> 0 | AB9: =AB10+AB13 -> 0 | AC9: =AC10+AC13 -> 425259656 | AD9: =AD10+AD13 -> 425259656 | AE9: =AE10+AE13 -> 0 | AF9: =AF10+AF13 -> 0 | AG9: =AF9/AD9 -> 0 | AH9: =AH10+AH13 -> 425259656 | AI9: =AI10+AI13 -> 425259656 | AJ9: 0 | AK9: 331000000000000 | AL9: GASTOS DE FUNCIONAMIENTO | AM9: =AM10+AM13 -> 0 | AN9: =AN10+AN13 -> 0 | AO9: =AO10+AO13 -> 122887399585 | AP9: =AP10+AP13 -> 122887399585 | AQ9: =AQ10+AQ13 -> 0 | AR9: =AR10+AR13 -> 0 | AS9: =AR9/AP9 -> 0 | AT9: =AT10+AT13 -> 56099049464 | AU9: =AU10+AU13 -> 56099049464 | AV9: =AV10+AV13 -> 66788350121
A10: 331010000000000 | B10: SERVICIOS PERSONALES | C10: =C11 -> 0 | D10: =D11 -> 0 | E10: 757531087 | F10: 757531087 | G10: 0 | H10: 0 | I10: 0 | J10: =J11 -> 757531087 | K10: =K11 -> 757531087 | L10: =L11 -> 0 | M10: 331010000000000 | N10: SERVICIOS PERSONALES | O10: =O11 -> 0 | P10: =P11 -> 0 | Q10: =Q11 -> 741576800 | R10: =R11 -> 741576800 | S10: =S11 -> 0 | T10: =T11 -> 0 | U10: 0 | V10: =V11 -> 741576800 | W10: =W11 -> 741576800 | X10: =X11 -> 0 | Y10: 331010000000000 | Z10: SERVICIOS PERSONALES | AA10: =AA11 -> 0 | AB10: =AB11 -> 0 | AC10: =AC11 -> 425259656 | AD10: =AD11 -> 425259656 | AE10: =AE11 -> 0 | AF10: =AF11 -> 0 | AG10: 0 | AH10: =AH11 -> 425259656 | AI10: =AI11 -> 425259656 | AJ10: 0 | AK10: 331010000000000 | AL10: SERVICIOS PERSONALES | AM10: =AM11 -> 0 | AN10: =AN11 -> 0 | AO10: =AO11 -> 1924367543 | AP10: =AP11 -> 1924367543 | AQ10: =AQ11 -> 0 | AR10: =AR11 -> 0 | AS10: 0 | AT10: =AT11 -> 1924367543 | AU10: =AU11 -> 1924367543 | AV10: =AV11 -> 0
A11: 331010200000000 | B11: SERVICIOS PERSONALES INDIRECTOS | C11: =C12 -> 0 | D11: 0 | E11: 757531087 | F11: 757531087 | G11: 0 | H11: 0 | I11: 0 | J11: 757531087 | K11: 757531087 | L11: 0 | M11: 331010200000000 | N11: SERVICIOS PERSONALES INDIRECTOS | O11: =O12 -> 0 | P11: 0 | Q11: 741576800 | R11: 741576800 | S11: 0 | T11: 0 | U11: 0 | V11: 741576800 | W11: 741576800 | X11: 0 | Y11: 331010200000000 | Z11: SERVICIOS PERSONALES INDIRECTOS | AA11: =AA12 -> 0 | AB11: 0 | AC11: 425259656 | AD11: 425259656 | AE11: 0 | AF11: 0 | AG11: 0 | AH11: 425259656 | AI11: 425259656 | AJ11: 0 | AK11: 331010200000000 | AL11: SERVICIOS PERSONALES INDIRECTOS | AM11: =AM12 -> 0 | AN11: 0 | AO11: 1924367543 | AP11: 1924367543 | AQ11: 0 | AR11: 0 | AS11: 0 | AT11: 1924367543 | AU11: 1924367543 | AV11: 0
A12: 331010203000000 | B12: HONORARIOS EMPRESA | C12: 0 | D12: 0 | E12: 757531087 | F12: 757531087 | G12: 0 | H12: 0 | I12: 0 | J12: 757531087 | K12: 757531087 | L12: =F12-H12-K12 -> 0 | M12: 331010203000000 | N12: HONORARIOS EMPRESA | O12: 0 | P12: 0 | Q12: 741576800 | R12: 741576800 | S12: 0 | T12: 0 | U12: 0 | V12: 741576800 | W12: 741576800 | Y12: 331010203000000 | Z12: HONORARIOS EMPRESA | AA12: 0 | AB12: 0 | AC12: 425259656 | AD12: 425259656 | AE12: 0 | AF12: 0 | AG12: 0 | AH12: 425259656 | AI12: 425259656 | AJ12: 0 | AK12: 331010203000000 | AL12: HONORARIOS EMPRESA | AM12: =C12+O12+AA12 -> 0 | AN12: =D12+P12+AB12 -> 0 | AO12: 1924367543 | AP12: 1924367543 | AQ12: 0 | AR12: 0 | AS12: 0 | AT12: =J12+V12+AH12 -> 1924367543 | AU12: =K12+W12+AI12 -> 1924367543 | AV12: =L12+X12+AJ12 -> 0
A13: 331020000000000 | B13: GASTOS GENERALES | C13: =C14 -> 0 | D13: =D14 -> 0 | E13: 66246558854 | F13: 66246558854 | G13: 0 | H13: 0 | I13: 0 | J13: =J14 -> 29816549697 | K13: =K14 -> 29816549697 | L13: =L14 -> 36430009157 | M13: 331020000000000 | N13: GASTOS GENERALES | O13: =O14 -> 0 | P13: =P14 -> 0 | Q13: =Q14 -> 54716473188 | R13: =R14 -> 54716473188 | S13: =S14 -> 0 | T13: =T14 -> 0 | U13: 0 | V13: =V14 -> 24358132224 | W13: =W14 -> 24358132224 | X13: =X14 -> 30358340964 | Y13: 331020000000000 | Z13: GASTOS GENERALES | AA13: =AA14 -> 0 | AB13: =AB14 -> 0 | AC13: =AC14 -> 0 | AD13: =AD14 -> 0 | AE13: =AE14 -> 0 | AF13: =AF14 -> 0 | AG13: 0 | AH13: =AH14 -> 0 | AI13: =AI14 -> 0 | AJ13: 0 | AK13: 331020000000000 | AL13: GASTOS GENERALES | AM13: =AM14 -> 0 | AN13: =AN14 -> 0 | AO13: =AO14 -> 120963032042 | AP13: =AP14 -> 120963032042 | AQ13: =AQ14 -> 0 | AR13: =AR14 -> 0 | AS13: 0 | AT13: =AT14 -> 54174681921 | AU13: =AU14 -> 54174681921 | AV13: =AV14 -> 66788350121
A14: 331020200000000 | B14: ADQUISICION DE SERVICIOS | C14: =C15+C16 -> 0 | D14: =D15+D16 -> 0 | E14: 66246558854 | F14: 66246558854 | G14: 0 | H14: 0 | I14: 0 | J14: =J15+J16 -> 29816549697 | K14: =K15+K16 -> 29816549697 | L14: =L15+L16 -> 36430009157 | M14: 331020200000000 | N14: ADQUISICION DE SERVICIOS | O14: =O15+O16 -> 0 | P14: =P15+P16 -> 0 | Q14: =Q15+Q16 -> 54716473188 | R14: =R15+R16 -> 54716473188 | S14: =S15+S16 -> 0 | T14: =T15+T16 -> 0 | U14: 0 | V14: =V15+V16 -> 24358132224 | W14: =W15+W16 -> 24358132224 | X14: =X15+X16 -> 30358340964 | Y14: 331020200000000 | Z14: ADQUISICION DE SERVICIOS | AA14: =AA15+AA16 -> 0 | AB14: =AB15+AB16 -> 0 | AC14: =AC15+AC16 -> 0 | AD14: =AD15+AD16 -> 0 | AE14: =AE15+AE16 -> 0 | AF14: =AF15+AF16 -> 0 | AG14: 0 | AH14: =AH15+AH16 -> 0 | AI14: =AI15+AI16 -> 0 | AJ14: 0 | AK14: 331020200000000 | AL14: ADQUISICION DE SERVICIOS | AM14: =AM15+AM16 -> 0 | AN14: =AN15+AN16 -> 0 | AO14: =AO15+AO16 -> 120963032042 | AP14: =AP15+AP16 -> 120963032042 | AQ14: =AQ15+AQ16 -> 0 | AR14: =AR15+AR16 -> 0 | AS14: 0 | AT14: =AT15+AT16 -> 54174681921 | AU14: =AU15+AU16 -> 54174681921 | AV14: =AV15+AV16 -> 66788350121
A15: 331020204000000 | B15: MANTENIMIENTO Y REPARACIONES | C15: 0 | D15: 0 | E15: 29816549697 | F15: 29816549697 | G15: 0 | H15: 0 | I15: 0 | J15: 29816549697 | K15: 29816549697 | L15: =F15-H15-K15 -> 0 | M15: 331020204000000 | N15: MANTENIMIENTO Y REPARACIONES | O15: 0 | P15: 0 | Q15: 24358132224 | R15: 24358132224 | S15: 0 | T15: 0 | U15: 0 | V15: 24358132224 | W15: 24358132224 | Y15: 331020204000000 | Z15: MANTENIMIENTO Y REPARACIONES | AA15: 0 | AB15: 0 | AC15: 0 | AD15: 0 | AE15: 0 | AF15: 0 | AG15: 0 | AH15: 0 | AI15: 0 | AJ15: 0 | AK15: 331020204000000 | AL15: MANTENIMIENTO Y REPARACIONES | AM15: =C15+O15+AA15 -> 0 | AN15: =D15+P15+AB15 -> 0 | AO15: 54174681921 | AP15: 54174681921 | AQ15: 0 | AR15: 0 | AS15: 0 | AT15: =J15+V15+AH15 -> 54174681921 | AU15: 54174681921 | AV15: 0
A16: 331020206000000 | B16: SEGUROS | C16: 0 | D16: 0 | E16: 36430009157 | F16: 36430009157 | G16: 0 | H16: 0 | I16: 0 | J16: 0 | K16: 0 | L16: 36430009157 | M16: 331020206000000 | N16: SEGUROS | O16: 0 | P16: 0 | Q16: 30358340964 | R16: 30358340964 | S16: 0 | T16: 0 | U16: 0 | V16: 0 | W16: 0 | X16: 30358340964 | Y16: 331020206000000 | Z16: SEGUROS | AA16: 0 | AB16: 0 | AC16: 0 | AD16: 0 | AE16: 0 | AF16: 0 | AG16: 0 | AH16: 0 | AI16: 0 | AJ16: 0 | AK16: 331020206000000 | AL16: SEGUROS | AM16: =C16+O16+AA16 -> 0 | AN16: 0 | AO16: 66788350121 | AP16: 66788350121 | AQ16: 0 | AR16: 0 | AS16: 0 | AT16: 0 | AU16: 0 | AV16: 66788350121
A17: 334000000000000 | B17: INVERSION | C17: =C18 -> 382346750258 | D17: =D18 -> 0 | E17: 5945730030 | F17: 388292480288 | G17: 0 | H17: 378368106509 | I17: 0.9744409838 | J17: =J18 -> 2492689085 | K17: 5115647908 | L17: 4808725871 | M17: 334000000000000 | N17: INVERSION | O17: =O18 -> 39259233760 | P17: =P18 -> 0 | Q17: =Q18 -> 2598399333 | R17: =R18 -> 41857633093 | S17: =S18 -> 0 | T17: =T18 -> 39259233760 | U17: 0.9379229273 | V17: =V18 -> 2547021868 | W17: =W18 -> 2547021868 | X17: =X18 -> 51377465 | Y17: 334000000000000 | Z17: INVERSION | AA17: =AA18 -> 0 | AB17: =AB18 -> 0 | AC17: =AC18 -> 636755468 | AD17: =AD18 -> 636755468 | AE17: =AE18 -> 0 | AF17: =AF18 -> 0 | AG17: 0 | AH17: =AH18 -> 636755468 | AI17: =AI18 -> 636755468 | AJ17: 0 | AK17: 334000000000000 | AL17: INVERSION | AM17: =AM18 -> 421605984018 | AN17: =AN18 -> 0 | AO17: =AO18 -> 9180884831 | AP17: =AP18 -> 430786868849 | AQ17: =AQ18 -> 0 | AR17: =AR18 -> 417627340269 | AS17: 0.9694523452 | AT17: =AT18 -> 5676466421 | AU17: =AU18 -> 8299425244 | AV17: =AV18 -> 4860103336
A18: 334010000000000 | B18: DIRECTA | C18: =C19+C39 -> 382346750258 | D18: =D19+D39 -> 0 | E18: 5945730030 | F18: 388292480288 | G18: 0 | H18: 378368106509 | I18: 0.9744409838 | J18: =J19+J39 -> 2492689085 | K18: 5115647908 | L18: 4808725871 | M18: 334010000000000 | N18: DIRECTA | O18: =O19+O39 -> 39259233760 | P18: =P19+P39 -> 0 | Q18: =Q19+Q39 -> 2598399333 | R18: =R19+R39 -> 41857633093 | S18: =S19+S39 -> 0 | T18: =T19+T39 -> 39259233760 | U18: 0.9379229273 | V18: =V19+V39 -> 2547021868 | W18: =W19+W39 -> 2547021868 | X18: =X19+X39 -> 51377465 | Y18: 334010000000000 | Z18: DIRECTA | AA18: =AA19+AA39 -> 0 | AB18: =AB19+AB39 -> 0 | AC18: =AC19+AC39 -> 636755468 | AD18: =AD19+AD39 -> 636755468 | AE18: =AE19+AE39 -> 0 | AF18: =AF19+AF39 -> 0 | AG18: 0 | AH18: =AH19+AH39 -> 636755468 | AI18: =AI19+AI39 -> 636755468 | AJ18: 0 | AK18: 334010000000000 | AL18: DIRECTA | AM18: =AM19+AM39 -> 421605984018 | AN18: =AN19+AN39 -> 0 | AO18: =AO19+AO39 -> 9180884831 | AP18: =AP19+AP39 -> 430786868849 | AQ18: =AQ19+AQ39 -> 0 | AR18: =AR19+AR39 -> 417627340269 | AS18: 0.9694523452 | AT18: =AT19+AT39 -> 5676466421 | AU18: =AU19+AU39 -> 8299425244 | AV18: =AV19+AV39 -> 4860103336
A19: 334011500000000 | B19: BOGOTA MEJOR PARA TODOS | C19: =C20+C32 -> 382346750258 | D19: =D20+D32 -> -388292480288 | E19: -382346750258 | F19: 0 | G19: -378368106509 | H19: 0 | I19: 0 | J19: =J20+J32 -> -2622958823 | K19: 0 | L19: 0 | M19: 334011500000000 | N19: BOGOTA MEJOR PARA TODOS | O19: =O20+O32 -> 39259233760 | P19: =P20+P32 -> -41857633093 | Q19: =Q20+Q32 -> -39259233760 | R19: =R20+R32 -> 0 | S19: =S20+S32 -> -39259233760 | T19: =T20+T32 -> 0 | U19: 0 | V19: =V20+V32 -> 0 | W19: =W20+W32 -> 0 | X19: =X20+X32 -> 0 | Y19: 334011500000000 | Z19: BOGOTA MEJOR PARA TODOS | AA19: =AA20+AA32 -> 0 | AB19: =AB20+AB32 -> -636755468 | AC19: =AC20+AC32 -> 0 | AD19: =AD20+AD32 -> 0 | AE19: =AE20+AE32 -> 0 | AF19: =AF20+AF32 -> 0 | AG19: 0 | AH19: =AH20+AH32 -> 0 | AI19: =AI20+AI32 -> 0 | AJ19: 0 | AK19: 334011500000000 | AL19: BOGOTA MEJOR PARA TODOS | AM19: =AM20+AM32 -> 421605984018 | AN19: =AN20+AN32 -> -430786868849 | AO19: =AO20+AO32 -> -421605984018 | AP19: =AP20+AP32 -> 0 | AQ19: =AQ20+AQ32 -> -417627340269 | AR19: =AR20+AR32 -> 0 | AS19: 0 | AT19: =AT20+AT32 -> -2622958823 | AU19: =AU20+AU32 -> 0 | AV19: =AV20+AV32 -> 0
A20: 334011502000000 | B20: PILAR DEMOCRACIA URBANA | C20: =C21 -> 376659234239 | D20: =D21 -> -381774882147 | E20: -376659234239 | F20: 0 | G20: -373455684590 | H20: 0 | I20: 0 | J20: =J21 -> -2157301560 | K20: 0 | L20: 0 | M20: 334011502000000 | N20: PILAR DEMOCRACIA URBANA | O20: =O21 -> 39259233760 | P20: =P21 -> -41806255628 | Q20: =Q21 -> -39259233760 | R20: =R21 -> 0 | S20: =S21 -> -39259233760 | T20: =T21 -> 0 | U20: 0 | V20: =V21 -> 0 | W20: =W21 -> 0 | X20: =X21 -> 0 | Y20: 334011502000000 | Z20: PILAR DEMOCRACIA URBANA | AA20: =AA21 -> 0 | AB20: =AB21 -> -636755468 | AC20: =AC21 -> 0 | AD20: =AD21 -> 0 | AE20: =AE21 -> 0 | AF20: =AF21 -> 0 | AG20: 0 | AH20: =AH21 -> 0 | AI20: =AI21 -> 0 | AJ20: 0 | AK20: 334011502000000 | AL20: PILAR DEMOCRACIA URBANA | AM20: =AM21 -> 415918467999 | AN20: =AN21 -> -424217893243 | AO20: =AO21 -> -415918467999 | AP20: =AP21 -> 0 | AQ20: =AQ21 -> -412714918350 | AR20: =AR21 -> 0 | AS20: 0 | AT20: =AT21 -> -2157301560 | AU20: =AU21 -> 0 | AV20: =AV21 -> 0
A21: 334011502130000 | B21: INFRAESTRUCTURA PARA EL DESARROLLO DEL HABITAT | C21: =C22 -> 376659234239 | D21: -381774882147 | E21: -376659234239 | F21: 0 | G21: -373455684590 | H21: 0 | I21: 0 | J21: -2157301560 | K21: 0 | L21: 0 | M21: 334011502130000 | N21: INFRAESTRUCTURA PARA EL DESARROLLO DEL HABITAT | O21: =O22 -> 39259233760 | P21: -41806255628 | Q21: -39259233760 | R21: 0 | S21: -39259233760 | T21: 0 | U21: 0 | V21: 0 | W21: 0 | X21: 0 | Y21: 334011502130000 | Z21: INFRAESTRUCTURA PARA EL DESARROLLO DEL HABITAT | AA21: =AA22 -> 0 | AB21: -636755468 | AC21: 0 | AD21: 0 | AE21: 0 | AF21: 0 | AG21: 0 | AH21: 0 | AI21: 0 | AJ21: 0 | AK21: 334011502130000 | AL21: INFRAESTRUCTURA PARA EL DESARROLLO DEL HABITAT | AM21: =AM22 -> 415918467999 | AN21: -424217893243 | AO21: -415918467999 | AP21: 0 | AQ21: -412714918350 | AR21: 0 | AS21: 0 | AT21: -2157301560 | AU21: 0 | AV21: 0
A22: 334011502130133 | B22: INFRAESTRUCTURA PARA EL DESARROLLO DEL HABITAT | C22: =C23+C24+C25+C26+C27+C28+C29+C30+C31 -> 376659234239 | D22: =D23+D24+D25+D26+D27+D28+D29+D30+D31 -> -381774882147 | E22: -376659234239 | F22: 0 | G22: -373455684590 | H22: 0 | I22: 0 | J22: =J23+J24+J25+J26+J27+J28+J29+J30+J31 -> -2157301560 | K22: 0 | L22: 0 | M22: 334011502130133 | N22: INFRAESTRUCTURA PARA EL DESARROLLO DEL HABITAT | O22: =O23+O24+O25+O26+O27+O28+O29+O30+O31 -> 39259233760 | P22: =P23+P24+P25+P26+P27+P28+P29+P30+P31 -> -41806255628 | Q22: =Q23+Q24+Q25+Q26+Q27+Q28+Q29+Q30+Q31 -> -39259233760 | R22: =R23+R24+R25+R26+R27+R28+R29+R30+R31 -> 0 | S22: =S23+S24+S25+S26+S27+S28+S29+S30+S31 -> -39259233760 | T22: =T23+T24+T25+T26+T27+T28+T29+T30+T31 -> 0 | U22: 0 | V22: =V23+V24+V25+V26+V27+V28+V29+V30+V31 -> 0 | W22: =W23+W24+W25+W26+W27+W28+W29+W30+W31 -> 0 | X22: =X23+X24+X25+X26+X27+X28+X29+X30+X31 -> 0 | Y22: 334011502130133 | Z22: INFRAESTRUCTURA PARA EL DESARROLLO DEL HABITAT | AA22: =AA23+AA24+AA25+AA26+AA27+AA28+AA29+AA30+AA31 -> 0 | AB22: =AB23+AB24+AB25+AB26+AB27+AB28+AB29+AB30+AB31 -> -636755468 | AC22: =AC23+AC24+AC25+AC26+AC27+AC28+AC29+AC30+AC31 -> 0 | AD22: =AD23+AD24+AD25+AD26+AD27+AD28+AD29+AD30+AD31 -> 0 | AE22: =AE23+AE24+AE25+AE26+AE27+AE28+AE29+AE30+AE31 -> 0 | AF22: =AF23+AF24+AF25+AF26+AF27+AF28+AF29+AF30+AF31 -> 0 | AG22: 0 | AH22: =AH23+AH24+AH25+AH26+AH27+AH28+AH29+AH30+AH31 -> 0 | AI22: =AI23+AI24+AI25+AI26+AI27+AI28+AI29+AI30+AI31 -> 0 | AJ22: 0 | AK22: 334011502130133 | AL22: INFRAESTRUCTURA PARA EL DESARROLLO DEL HABITAT | AM22: =AM23+AM24+AM25+AM26+AM27+AM28+AM29+AM30+AM31 -> 415918467999 | AN22: =AN23+AN24+AN25+AN26+AN27+AN28+AN29+AN30+AN31 -> -424217893243 | AO22: =AO23+AO24+AO25+AO26+AO27+AO28+AO29+AO30+AO31 -> -415918467999 | AP22: =AP23+AP24+AP25+AP26+AP27+AP28+AP29+AP30+AP31 -> 0 | AQ22: =AQ23+AQ24+AQ25+AQ26+AQ27+AQ28+AQ29+AQ30+AQ31 -> -412714918350 | AR22: =AR23+AR24+AR25+AR26+AR27+AR28+AR29+AR30+AR31 -> 0 | AS22: 0 | AT22: =AT23+AT24+AT25+AT26+AT27+AT28+AT29+AT30+AT31 -> -2157301560 | AU22: =AU23+AU24+AU25+AU26+AU27+AU28+AU29+AU30+AU31 -> 0 | AV22: =AV23+AV24+AV25+AV26+AV27+AV28+AV29+AV30+AV31 -> 0
A23: 334011502130133000019 | B23: 0019 - CONSTRUCCIÓN DE REDES LOCALES PARA EL SERVICIO DE ALC | C23: 11668762025 | D23: -11668762025 | E23: -11668762025 | F23: 0 | G23: -11156590792 | H23: 0 | I23: 0 | J23: 0 | K23: 0 | L23: =F23-H23-K23 -> 0 | M23: 334011502130133000019 | N23: 0019 - CONSTRUCCIÓN DE REDES LOCALES PARA EL SERVICIO DE ALC | O23: 5275090598 | P23: -5275090598 | Q23: -5275090598 | S23: -5275090598 | T23: 0 | U23: 0 | V23: 0 | W23: 0 | X23: 0 | Y23: 334011502130133000019 | Z23: 0019 - CONSTRUCCIÓN DE REDES LOCALES PARA EL SERVICIO DE ALC | AA23: 0 | AB23: 0 | AC23: 0 | AD23: 0 | AE23: 0 | AF23: 0 | AG23: 0 | AH23: 0 | AI23: 0 | AJ23: 0 | AK23: 334011502130133000019 | AL23: 0019 - CONSTRUCCIÓN DE REDES LOCALES PARA EL SERVICIO DE ALC | AM23: =C23+O23+AA23 -> 16943852623 | AN23: -16943852623 | AO23: =E23+Q23+AC23 -> -16943852623 | AP23: =F23+R23+AD23 -> 0 | AQ23: =G23+S23+AE23 -> -16431681390 | AR23: =H23+T23+AF23 -> 0 | AS23: 0 | AT23: =J23+V23+AH23 -> 0 | AU23: =K23+W23+AI23 -> 0 | AV23: =L23+X23+AJ23 -> 0
A24: 334011502130133000020 | B24: 0020 - CONSTRUCCIÓN DE REDES LOCALES PARA EL SERVICIO DE ALC | C24: 14636414189 | D24: -14636414189 | E24: -14636414189 | F24: 0 | G24: -14102337334 | H24: 0 | I24: 0 | J24: 0 | K24: 0 | L24: 0 | M24: 334011502130133000020 | N24: 0020 - CONSTRUCCIÓN DE REDES LOCALES PARA EL SERVICIO DE ALC | O24: 7487307593 | P24: -7487307593 | Q24: -7487307593 | S24: -7487307593 | T24: 0 | U24: 0 | V24: 0 | W24: 0 | X24: 0 | Y24: 334011502130133000020 | Z24: 0020 - CONSTRUCCIÓN DE REDES LOCALES PARA EL SERVICIO DE ALC | AA24: 0 | AB24: 0 | AC24: 0 | AD24: 0 | AE24: 0 | AF24: 0 | AG24: 0 | AH24: 0 | AI24: 0 | AJ24: 0 | AK24: 334011502130133000020 | AL24: 0020 - CONSTRUCCIÓN DE REDES LOCALES PARA EL SERVICIO DE ALC | AM24: 22123721782 | AN24: =D24+P24+AB24 -> -22123721782 | AO24: -22123721782 | AP24: 0 | AQ24: -21589644927 | AR24: 0 | AS24: 0 | AT24: 0 | AU24: 0 | AV24: 0
A25: 334011502130133000050 | B25: 0050 - RENOVACIÓN, REHABILITACIÓN O REPOSICIÓN DE LOS SISTEM | C25: 203261089828 | D25: -208376737736 | E25: -203261089828 | F25: 0 | G25: -203104519943 | H25: 0 | I25: 0 | J25: -156569885 | K25: 0 | L25: 0 | M25: 334011502130133000050 | N25: 0050 - RENOVACIÓN, REHABILITACIÓN O REPOSICIÓN DE LOS SISTEM | O25: 23627949336 | P25: -26174971204 | Q25: -23627949336 | S25: -23627949336 | T25: 0 | U25: 0 | V25: 0 | W25: 0 | X25: 0 | Y25: 334011502130133000050 | Z25: 0050 - RENOVACIÓN, REHABILITACIÓN O REPOSICIÓN DE LOS SISTEM | AA25: 0 | AB25: -636755468 | AC25: 0 | AD25: 0 | AE25: 0 | AF25: 0 | AG25: 0 | AH25: 0 | AI25: 0 | AJ25: 0 | AK25: 334011502130133000050 | AL25: 0050 - RENOVACIÓN, REHABILITACIÓN O REPOSICIÓN DE LOS SISTEM | AM25: 226889039164 | AN25: -235188464408 | AO25: -226889039164 | AP25: 0 | AQ25: -226732469279 | AR25: 0 | AS25: 0 | AT25: -156569885 | AU25: 0 | AV25: 0
A26: 334011502130133000051 | B26: 0051 - RENOVACIÓN, REHABILITACIÓN O REPOSICIÓN DEL SISTEMA T | C26: 39298907867 | D26: -39298907867 | E26: -39298907867 | F26: 0 | G26: -37539925496 | H26: 0 | I26: 0 | J26: -1758982371 | K26: 0 | L26: 0 | M26: 334011502130133000051 | N26: 0051 - RENOVACIÓN, REHABILITACIÓN O REPOSICIÓN DEL SISTEMA T | O26: 0 | P26: 0 | Q26: 0 | R26: 0 | S26: 0 | T26: 0 | U26: 0 | V26: 0 | W26: 0 | X26: 0 | Y26: 334011502130133000051 | Z26: 0051 - RENOVACIÓN, REHABILITACIÓN O REPOSICIÓN DEL SISTEMA T | AA26: 0 | AB26: 0 | AC26: 0 | AD26: 0 | AE26: 0 | AF26: 0 | AG26: 0 | AH26: 0 | AI26: 0 | AJ26: 0 | AK26: 334011502130133000051 | AL26: 0051 - RENOVACIÓN, REHABILITACIÓN O REPOSICIÓN DEL SISTEMA T | AM26: 39298907867 | AN26: -39298907867 | AO26: -39298907867 | AP26: 0 | AQ26: -37539925496 | AR26: 0 | AS26: 0 | AT26: -1758982371 | AU26: 0 | AV26: 0
A27: 334011502130133000052 | B27: 0052 - RENOVACIÓN, REHABILITACIÓN O REPOSICIÓN DEL SISTEMA T | C27: 14427013747 | D27: -14427013747 | E27: -14427013747 | F27: 0 | G27: -14185264442 | H27: 0 | I27: 0 | J27: -241749304 | K27: 0 | L27: 0 | M27: 334011502130133000052 | N27: 0052 - RENOVACIÓN, REHABILITACIÓN O REPOSICIÓN DEL SISTEMA T | O27: 0 | P27: 0 | Q27: 0 | R27: 0 | S27: 0 | T27: 0 | U27: 0 | V27: 0 | W27: 0 | X27: 0 | Y27: 334011502130133000052 | Z27: 0052 - RENOVACIÓN, REHABILITACIÓN O REPOSICIÓN DEL SISTEMA T | AA27: 0 | AB27: 0 | AC27: 0 | AD27: 0 | AE27: 0 | AF27: 0 | AG27: 0 | AH27: 0 | AI27: 0 | AJ27: 0 | AK27: 334011502130133000052 | AL27: 0052 - RENOVACIÓN, REHABILITACIÓN O REPOSICIÓN DEL SISTEMA T | AM27: 14427013747 | AN27: -14427013747 | AO27: -14427013747 | AP27: 0 | AQ27: -14185264442 | AR27: 0 | AS27: 0 | AT27: -241749304 | AU27: 0 | AV27: 0
A28: 334011502130133000054 | B28: 0054 - ACCIONES PARA EL SANEAMIENTO DEL RÍO BOGOTÁ | C28: 65381426116 | D28: -65381426116 | E28: -65381426116 | F28: 0 | G28: -65381426116 | H28: 0 | I28: 0 | J28: 0 | K28: 0 | L28: 0 | M28: 334011502130133000054 | N28: 0054 - ACCIONES PARA EL SANEAMIENTO DEL RÍO BOGOTÁ | O28: 0 | P28: 0 | Q28: 0 | R28: 0 | S28: 0 | T28: 0 | U28: 0 | V28: 0 | W28: 0 | X28: 0 | Y28: 334011502130133000054 | Z28: 0054 - ACCIONES PARA EL SANEAMIENTO DEL RÍO BOGOTÁ | AA28: 0 | AB28: 0 | AC28: 0 | AD28: 0 | AE28: 0 | AF28: 0 | AG28: 0 | AH28: 0 | AI28: 0 | AJ28: 0 | AK28: 334011502130133000054 | AL28: 0054 - ACCIONES PARA EL SANEAMIENTO DEL RÍO BOGOTÁ | AM28: 65381426116 | AN28: -65381426116 | AO28: -65381426116 | AP28: 0 | AQ28: -65381426116 | AR28: 0 | AS28: 0 | AT28: 0 | AU28: 0 | AV28: 0
A29: 334011502130133000068 | B29: 0068 - CONSTRUCCIÓN, RENOVACIÓN, REHABILITACIÓN O REPOSICIÓN | C29: 10754705083 | D29: -10754705083 | E29: -10754705083 | F29: 0 | G29: -10754705083 | H29: 0 | I29: 0 | J29: 0 | K29: 0 | L29: 0 | M29: 334011502130133000068 | N29: 0068 - CONSTRUCCIÓN, RENOVACIÓN, REHABILITACIÓN O REPOSICIÓN | O29: 0 | P29: 0 | Q29: 0 | R29: 0 | S29: 0 | T29: 0 | U29: 0 | V29: 0 | W29: 0 | X29: 0 | Y29: 334011502130133000068 | Z29: 0068 - CONSTRUCCIÓN, RENOVACIÓN, REHABILITACIÓN O REPOSICIÓN | AA29: 0 | AB29: 0 | AC29: 0 | AD29: 0 | AE29: 0 | AF29: 0 | AG29: 0 | AH29: 0 | AI29: 0 | AJ29: 0 | AK29: 334011502130133000068 | AL29: 0068 - CONSTRUCCIÓN, RENOVACIÓN, REHABILITACIÓN O REPOSICIÓN | AM29: 10754705083 | AN29: -10754705083 | AO29: -10754705083 | AP29: 0 | AQ29: -10754705083 | AR29: 0 | AS29: 0 | AT29: 0 | AU29: 0 | AV29: 0
A30: 334011502130133007334 | B30: 7334 - CONSTRUCCIÓN Y EXPANSIÓN DEL SISTEMA DE ABASTECIMIENT | C30: 13433170360 | D30: -13433170360 | E30: -13433170360 | F30: 0 | G30: -13433170360 | H30: 0 | I30: 0 | J30: 0 | K30: 0 | L30: 0 | M30: 334011502130133007334 | N30: 7334 - CONSTRUCCIÓN Y EXPANSIÓN DEL SISTEMA DE ABASTECIMIENT | O30: 0 | P30: 0 | Q30: 0 | R30: 0 | S30: 0 | T30: 0 | U30: 0 | V30: 0 | W30: 0 | X30: 0 | Y30: 334011502130133007334 | Z30: 7334 - CONSTRUCCIÓN Y EXPANSIÓN DEL SISTEMA DE ABASTECIMIENT | AA30: 0 | AB30: 0 | AC30: 0 | AD30: 0 | AE30: 0 | AF30: 0 | AG30: 0 | AH30: 0 | AI30: 0 | AJ30: 0 | AK30: 334011502130133007334 | AL30: 7334 - CONSTRUCCIÓN Y EXPANSIÓN DEL SISTEMA DE ABASTECIMIENT | AM30: 13433170360 | AN30: -13433170360 | AO30: -13433170360 | AP30: 0 | AQ30: -13433170360 | AR30: 0 | AS30: 0 | AT30: 0 | AU30: 0 | AV30: 0
A31: 334011502130133007338 | B31: 7338 - CONSTRUCCIÓN DE REDES LOCALES PARA EL SERVICIO DE ACU | C31: 3797745024 | D31: -3797745024 | E31: -3797745024 | F31: 0 | G31: -3797745024 | H31: 0 | I31: 0 | J31: 0 | K31: 0 | L31: 0 | M31: 334011502130133007338 | N31: 7338 - CONSTRUCCIÓN DE REDES LOCALES PARA EL SERVICIO DE ACU | O31: 2868886233 | P31: -2868886233 | Q31: -2868886233 | S31: -2868886233 | T31: 0 | U31: 0 | V31: 0 | W31: 0 | X31: 0 | Y31: 334011502130133007338 | Z31: 7338 - CONSTRUCCIÓN DE REDES LOCALES PARA EL SERVICIO DE ACU | AA31: 0 | AB31: 0 | AC31: 0 | AD31: 0 | AE31: 0 | AF31: 0 | AG31: 0 | AH31: 0 | AI31: 0 | AJ31: 0 | AK31: 334011502130133007338 | AL31: 7338 - CONSTRUCCIÓN DE REDES LOCALES PARA EL SERVICIO DE ACU | AM31: 6666631257 | AN31: -6666631257 | AO31: -6666631257 | AP31: 0 | AQ31: -6666631257 | AR31: 0 | AS31: 0 | AT31: 0 | AU31: 0 | AV31: 0
A32: 334011506000000 | B32: EJE TRANSV. SOSTENIB. AMBIENTAL BASADA EFICIENCIA ENERGETICA | C32: =C33+C36 -> 5687516019 | D32: =D33+D36 -> -6517598141 | E32: -5687516019 | F32: 0 | G32: -4912421919 | H32: 0 | I32: 0 | J32: =J33+J36 -> -465657263 | K32: 0 | L32: 0 | M32: 334011506000000 | N32: EJE TRANSV. SOSTENIB. AMBIENTAL BASADA EFICIENCIA ENERGETICA | O32: =O33+O36 -> 0 | P32: =P33+P36 -> -51377465 | Q32: =Q33+Q36 -> 0 | R32: =R33+R36 -> 0 | S32: =S33+S36 -> 0 | T32: =T33+T36 -> 0 | U32: 0 | V32: =V33+V36 -> 0 | W32: =W33+W36 -> 0 | X32: =X33+X36 -> 0 | Y32: 334011506000000 | Z32: EJE TRANSV. SOSTENIB. AMBIENTAL BASADA EFICIENCIA ENERGETICA | AA32: =AA33+AA36 -> 0 | AB32: =AB33+AB36 -> 0 | AC32: =AC33+AC36 -> 0 | AD32: =AD33+AD36 -> 0 | AE32: =AE33+AE36 -> 0 | AF32: =AF33+AF36 -> 0 | AG32: 0 | AH32: =AH33+AH36 -> 0 | AI32: =AI33+AI36 -> 0 | AJ32: 0 | AK32: 334011506000000 | AL32: EJE TRANSV. SOSTENIB. AMBIENTAL BASADA EFICIENCIA ENERGETICA | AM32: =AM33+AM36 -> 5687516019 | AN32: =AN33+AN36 -> -6568975606 | AO32: =AO33+AO36 -> -5687516019 | AP32: =AP33+AP36 -> 0 | AQ32: =AQ33+AQ36 -> -4912421919 | AR32: =AR33+AR36 -> 0 | AS32: 0 | AT32: =AT33+AT36 -> -465657263 | AU32: =AU33+AU36 -> 0 | AV32: =AV33+AV36 -> 0
A33: 334011506380000 | B33: RECUPERACION Y MANEJO ESTRUCTURA ECOLOGICA PRINCIPAL | C33: =C34 -> 764011757 | D33: =D34 -> -764011757 | E33: -764011757 | F33: 0 | G33: -764011757 | H33: 0 | I33: 0 | J33: =J34 -> 0 | K33: 0 | L33: 0 | M33: 334011506380000 | N33: RECUPERACION Y MANEJO ESTRUCTURA ECOLOGICA PRINCIPAL | O33: =O34 -> 0 | P33: =P34 -> 0 | Q33: =Q34 -> 0 | R33: =R34 -> 0 | S33: =S34 -> 0 | T33: =T34 -> 0 | U33: 0 | V33: =V34 -> 0 | W33: =W34 -> 0 | X33: =X34 -> 0 | Y33: 334011506380000 | Z33: RECUPERACION Y MANEJO ESTRUCTURA ECOLOGICA PRINCIPAL | AA33: =AA34 -> 0 | AB33: =AB34 -> 0 | AC33: =AC34 -> 0 | AD33: =AD34 -> 0 | AE33: =AE34 -> 0 | AF33: =AF34 -> 0 | AG33: 0 | AH33: =AH34 -> 0 | AI33: =AI34 -> 0 | AJ33: 0 | AK33: 334011506380000 | AL33: RECUPERACION Y MANEJO ESTRUCTURA ECOLOGICA PRINCIPAL | AM33: =AM34 -> 764011757 | AN33: =AN34 -> -764011757 | AO33: =AO34 -> -764011757 | AP33: =AP34 -> 0 | AQ33: =AQ34 -> -764011757 | AR33: =AR34 -> 0 | AS33: 0 | AT33: =AT34 -> 0 | AU33: =AU34 -> 0 | AV33: =AV34 -> 0
A34: 334011506380177 | B34: CONSOLIDACION DE LA ESTRUCTURA ECOLOGICA PRINCIPAL | C34: =C35 -> 764011757 | D34: -764011757 | E34: -764011757 | F34: 0 | G34: -764011757 | H34: 0 | I34: 0 | J34: 0 | K34: 0 | L34: 0 | M34: 334011506380177 | N34: CONSOLIDACION DE LA ESTRUCTURA ECOLOGICA PRINCIPAL | O34: =O35 -> 0 | P34: 0 | Q34: 0 | R34: 0 | S34: 0 | T34: 0 | U34: 0 | V34: 0 | W34: 0 | X34: 0 | Y34: 334011506380177 | Z34: CONSOLIDACION DE LA ESTRUCTURA ECOLOGICA PRINCIPAL | AA34: =AA35 -> 0 | AB34: 0 | AC34: 0 | AD34: 0 | AE34: 0 | AF34: 0 | AG34: 0 | AH34: 0 | AI34: 0 | AJ34: 0 | AK34: 334011506380177 | AL34: CONSOLIDACION DE LA ESTRUCTURA ECOLOGICA PRINCIPAL | AM34: =AM35 -> 764011757 | AN34: -764011757 | AO34: -764011757 | AP34: 0 | AQ34: -764011757 | AR34: 0 | AS34: 0 | AT34: 0 | AU34: 0 | AV34: 0
A35: 334011506380177007341 | B35: 7341 - ADEC.HIDRAULICA RECUP.AMB.HUMED,QUEBRADAS,RIOS CUENCA | C35: 764011757 | D35: -764011757 | E35: -764011757 | F35: 0 | G35: -764011757 | H35: 0 | I35: 0 | J35: 0 | K35: 0 | L35: =F35-H35-K35 -> 0 | M35: 334011506380177007341 | N35: 7341 - ADEC.HIDRAULICA RECUP.AMB.HUMED,QUEBRADAS,RIOS CUENCA | O35: 0 | P35: 0 | Q35: 0 | R35: 0 | S35: 0 | T35: 0 | U35: 0 | V35: 0 | W35: 0 | X35: 0 | Y35: 334011506380177007341 | Z35: 7341 - ADEC.HIDRAULICA RECUP.AMB.HUMED,QUEBRADAS,RIOS CUENCA | AA35: 0 | AB35: 0 | AC35: 0 | AD35: 0 | AE35: 0 | AF35: 0 | AG35: 0 | AH35: 0 | AI35: 0 | AJ35: 0 | AK35: 334011506380177007341 | AL35: 7341 - ADEC.HIDRAULICA RECUP.AMB.HUMED,QUEBRADAS,RIOS CUENCA | AM35: =C35+O35+AA35 -> 764011757 | AN35: =D35+P35+AB35 -> -764011757 | AO35: =E35+Q35+AC35 -> -764011757 | AP35: =F35+R35+AD35 -> 0 | AQ35: =G35+S35+AE35 -> -764011757 | AR35: =H35+T35+AF35 -> 0 | AS35: 0 | AT35: =J35+V35+AH35 -> 0 | AU35: =K35+W35+AI35 -> 0 | AV35: =L35+X35+AJ35 -> 0
A36: 334011506390000 | B36: AMBIENTE SANO PARA LA EQUIDAD Y DISFRUTE DEL CIUDADANO | C36: =C37 -> 4923504262 | D36: =D37 -> -5753586384 | E36: -4923504262 | F36: 0 | G36: -4148410162 | H36: 0 | I36: 0 | J36: =J37 -> -465657263 | K36: 0 | L36: 0 | M36: 334011506390000 | N36: AMBIENTE SANO PARA LA EQUIDAD Y DISFRUTE DEL CIUDADANO | O36: =O37 -> 0 | P36: =P37 -> -51377465 | Q36: =Q37 -> 0 | R36: =R37 -> 0 | S36: =S37 -> 0 | T36: =T37 -> 0 | U36: 0 | V36: =V37 -> 0 | W36: =W37 -> 0 | X36: =X37 -> 0 | Y36: 334011506390000 | Z36: AMBIENTE SANO PARA LA EQUIDAD Y DISFRUTE DEL CIUDADANO | AA36: =AA37 -> 0 | AB36: =AB37 -> 0 | AC36: =AC37 -> 0 | AD36: =AD37 -> 0 | AE36: =AE37 -> 0 | AF36: =AF37 -> 0 | AG36: 0 | AH36: =AH37 -> 0 | AI36: =AI37 -> 0 | AJ36: 0 | AK36: 334011506390000 | AL36: AMBIENTE SANO PARA LA EQUIDAD Y DISFRUTE DEL CIUDADANO | AM36: =AM37 -> 4923504262 | AN36: =AN37 -> -5804963849 | AO36: =AO37 -> -4923504262 | AP36: =AP37 -> 0 | AQ36: =AQ37 -> -4148410162 | AR36: =AR37 -> 0 | AS36: 0 | AT36: =AT37 -> -465657263 | AU36: =AU37 -> 0 | AV36: =AV37 -> 0
A37: 334011506390179 | B37: AMBIENTE SANO | C37: =C38 -> 4923504262 | D37: -5753586384 | E37: -4923504262 | F37: 0 | G37: -4148410162 | H37: 0 | I37: 0 | J37: -465657263 | K37: 0 | L37: 0 | M37: 334011506390179 | N37: AMBIENTE SANO | O37: =O38 -> 0 | P37: -51377465 | Q37: 0 | R37: 0 | S37: 0 | T37: 0 | U37: 0 | V37: 0 | W37: 0 | X37: 0 | Y37: 334011506390179 | Z37: AMBIENTE SANO | AA37: =AA38 -> 0 | AB37: 0 | AC37: 0 | AD37: 0 | AE37: 0 | AF37: 0 | AG37: 0 | AH37: 0 | AI37: 0 | AJ37: 0 | AK37: 334011506390179 | AL37: AMBIENTE SANO | AM37: =AM38 -> 4923504262 | AN37: -5804963849 | AO37: -4923504262 | AP37: 0 | AQ37: -4148410162 | AR37: 0 | AS37: 0 | AT37: -465657263 | AU37: 0 | AV37: 0
A38: 334011506390179000082 | B38: 0082 - PLAN DE SANEAMIENTO Y MANEJO DE VERTIMIENTOS | C38: 4923504262 | D38: -5753586384 | E38: -4923504262 | F38: 0 | G38: -4148410162 | H38: 0 | I38: 0 | J38: -465657263 | K38: 0 | L38: =F38-H38-K38 -> 0 | M38: 334011506390179000082 | N38: 0082 - PLAN DE SANEAMIENTO Y MANEJO DE VERTIMIENTOS | O38: 0 | P38: -51377465 | Q38: 0 | R38: 0 | S38: 0 | T38: 0 | U38: 0 | V38: 0 | W38: 0 | X38: 0 | Y38: 334011506390179000082 | Z38: 0082 - PLAN DE SANEAMIENTO Y MANEJO DE VERTIMIENTOS | AA38: 0 | AB38: 0 | AC38: 0 | AD38: 0 | AE38: 0 | AF38: 0 | AG38: 0 | AH38: 0 | AI38: 0 | AJ38: 0 | AK38: 334011506390179000082 | AL38: 0082 - PLAN DE SANEAMIENTO Y MANEJO DE VERTIMIENTOS | AM38: =C38+O38+AA38 -> 4923504262 | AN38: =D38+P38+AB38 -> -5804963849 | AO38: =E38+Q38+AC38 -> -4923504262 | AP38: =F38+R38+AD38 -> 0 | AQ38: =G38+S38+AE38 -> -4148410162 | AR38: =H38+T38+AF38 -> 0 | AS38: 0 | AT38: =J38+V38+AH38 -> -465657263 | AU38: =K38+W38+AI38 -> 0 | AV38: =L38+X38+AJ38 -> 0
A39: 334334011600000000011600000000 | B39: UN NUEVO CONTRATO SOCIAL Y AMBIENTAL BOGOTÁ DEL SIGLO XXI | C39: =C40 -> 0 | D39: =D40 -> 388292480288 | E39: 388292480288 | F39: 388292480288 | G39: 378368106509 | H39: 378368106509 | I39: 0.9744409838 | J39: =J40 -> 5115647908 | K39: 5115647908 | L39: 4808725871 | M39: 334334011600000000011600000000 | N39: UN NUEVO CONTRATO SOCIAL Y AMBIENTAL BOGOTÁ DEL SIGLO XXI | O39: =O40 -> 0 | P39: =P40 -> 41857633093 | Q39: =Q40 -> 41857633093 | R39: =R40 -> 41857633093 | S39: =S40 -> 39259233760 | T39: =T40 -> 39259233760 | U39: 0.9379229273 | V39: =V40 -> 2547021868 | W39: =W40 -> 2547021868 | X39: =X40 -> 51377465 | Y39: 334334011600000000011600000000 | Z39: UN NUEVO CONTRATO SOCIAL Y AMBIENTAL BOGOTÁ DEL SIGLO XXI | AA39: =AA40 -> 0 | AB39: =AB40 -> 636755468 | AC39: =AC40 -> 636755468 | AD39: =AD40 -> 636755468 | AE39: =AE40 -> 0 | AF39: =AF40 -> 0 | AG39: 0 | AH39: =AH40 -> 636755468 | AI39: =AI40 -> 636755468 | AJ39: 0 | AK39: 334334011600000000011600000000 | AL39: UN NUEVO CONTRATO SOCIAL Y AMBIENTAL BOGOTÁ DEL SIGLO XXI | AM39: =AM40 -> 0 | AN39: =AN40 -> 430786868849 | AO39: =AO40 -> 430786868849 | AP39: =AP40 -> 430786868849 | AQ39: =AQ40 -> 417627340269 | AR39: =AR40 -> 417627340269 | AS39: 0.9694523452 | AT39: =AT40 -> 8299425244 | AU39: =AU40 -> 8299425244 | AV39: =AV40 -> 4860103336
A40: 334011602000000 | B40: CAMBIAR HÁBITOS DE VIDA ADAPTARNOS Y MITIGAR CRISIS CLIMATIC | C40: =C41+C48 -> 0 | D40: =D41+D48 -> 388292480288 | E40: 388292480288 | F40: 388292480288 | G40: 378368106509 | H40: 378368106509 | I40: 0.9744409838 | J40: =J41+J48 -> 5115647908 | K40: 5115647908 | L40: 4808725871 | M40: 334011602000000 | N40: CAMBIAR HÁBITOS DE VIDA ADAPTARNOS Y MITIGAR CRISIS CLIMATIC | O40: =O41+O48 -> 0 | P40: =P41+P48 -> 41857633093 | Q40: =Q41+Q48 -> 41857633093 | R40: =R41+R48 -> 41857633093 | S40: =S41+S48 -> 39259233760 | T40: =T41+T48 -> 39259233760 | U40: 0.9379229273 | V40: =V41+V48 -> 2547021868 | W40: =W41+W48 -> 2547021868 | X40: =X41+X48 -> 51377465 | Y40: 334011602000000 | Z40: CAMBIAR HÁBITOS DE VIDA ADAPTARNOS Y MITIGAR CRISIS CLIMATIC | AA40: =AA41+AA48 -> 0 | AB40: =AB41+AB48 -> 636755468 | AC40: =AC41+AC48 -> 636755468 | AD40: =AD41+AD48 -> 636755468 | AE40: =AE41+AE48 -> 0 | AF40: =AF41+AF48 -> 0 | AG40: 0 | AH40: =AH41+AH48 -> 636755468 | AI40: =AI41+AI48 -> 636755468 | AJ40: 0 | AK40: 334011602000000 | AL40: CAMBIAR HÁBITOS DE VIDA ADAPTARNOS Y MITIGAR CRISIS CLIMATIC | AM40: =AM41+AM48 -> 0 | AN40: =AN41+AN48 -> 430786868849 | AO40: =AO41+AO48 -> 430786868849 | AP40: =AP41+AP48 -> 430786868849 | AQ40: =AQ41+AQ48 -> 417627340269 | AR40: =AR41+AR48 -> 417627340269 | AS40: 0.9694523452 | AT40: =AT41+AT48 -> 8299425244 | AU40: =AU41+AU48 -> 8299425244 | AV40: =AV41+AV48 -> 4860103336
A41: 334011602060000 | B41: RESTAURACIÓN, PRESERVACIÓN Y MANTENIMIENTO AMBIENTE NATURAL | C41: =C42+C44 -> 0 | D41: =D42+D44 -> 60243519755 | E41: 60243519755 | F41: 60243519755 | G41: 56637611857 | H41: 56637611857 | I41: 0.9401444684 | J41: =J42+J44 -> 0 | K41: 0 | L41: 3605907898 | M41: 334011602060000 | N41: RESTAURACIÓN, PRESERVACIÓN Y MANTENIMIENTO AMBIENTE NATURAL | O41: =O42+O44 -> 0 | P41: =P42+P44 -> 51377465 | Q41: =Q42+Q44 -> 51377465 | R41: =R42+R44 -> 51377465 | S41: =S42+S44 -> 0 | T41: =T42+T44 -> 0 | U41: 0 | V41: =V42+V44 -> 0 | W41: =W42+W44 -> 0 | X41: =X42+X44 -> 51377465 | Y41: 334011602060000 | Z41: RESTAURACIÓN, PRESERVACIÓN Y MANTENIMIENTO AMBIENTE NATURAL | AA41: =AA42+AA44 -> 0 | AB41: =AB42+AB44 -> 0 | AC41: =AC42+AC44 -> 0 | AD41: =AD42+AD44 -> 0 | AE41: =AE42+AE44 -> 0 | AF41: =AF42+AF44 -> 0 | AG41: 0 | AH41: =AH42+AH44 -> 0 | AI41: =AI42+AI44 -> 0 | AJ41: 0 | AK41: 334011602060000 | AL41: RESTAURACIÓN, PRESERVACIÓN Y MANTENIMIENTO AMBIENTE NATURAL | AM41: =AM42+AM44 -> 0 | AN41: =AN42+AN44 -> 60294897220 | AO41: =AO42+AO44 -> 60294897220 | AP41: =AP42+AP44 -> 60294897220 | AQ41: =AQ42+AQ44 -> 56637611857 | AR41: =AR42+AR44 -> 56637611857 | AS41: 0.9393433685 | AT41: =AT42+AT44 -> 0 | AU41: =AU42+AU44 -> 0 | AV41: =AV42+AV44 -> 3657285363
A42: 334011602062800 | B42: BOGOTÁ PROTECTORA DE SUS RECURSOS NATURALES | C42: =C43 -> 0 | D42: =D43 -> 764011757 | E42: 764011757 | F42: 764011757 | G42: 764011757 | H42: 764011757 | I42: 1 | J42: =J43 -> 0 | K42: 0 | L42: 0 | M42: 334011602062800 | N42: BOGOTÁ PROTECTORA DE SUS RECURSOS NATURALES | O42: =O43 -> 0 | P42: =P43 -> 0 | Q42: =Q43 -> 0 | R42: =R43 -> 0 | S42: =S43 -> 0 | T42: =T43 -> 0 | U42: 0 | V42: =V43 -> 0 | W42: =W43 -> 0 | X42: =X43 -> 0 | Y42: 334011602062800 | Z42: BOGOTÁ PROTECTORA DE SUS RECURSOS NATURALES | AA42: =AA43 -> 0 | AB42: =AB43 -> 0 | AC42: =AC43 -> 0 | AD42: =AD43 -> 0 | AE42: =AE43 -> 0 | AF42: =AF43 -> 0 | AG42: 0 | AH42: =AH43 -> 0 | AI42: =AI43 -> 0 | AJ42: 0 | AK42: 334011602062800 | AL42: BOGOTÁ PROTECTORA DE SUS RECURSOS NATURALES | AM42: =AM43 -> 0 | AN42: =AN43 -> 764011757 | AO42: =AO43 -> 764011757 | AP42: =AP43 -> 764011757 | AQ42: =AQ43 -> 764011757 | AR42: =AR43 -> 764011757 | AS42: 1 | AT42: =AT43 -> 0 | AU42: =AU43 -> 0 | AV42: =AV43 -> 0
A43: 334011602062800147341 | B43: 7341 -ADECUACIÓN HIDRÁULICA Y RECUPERACIÓN AMBIENTAL DE HUME | C43: 0 | D43: 764011757 | E43: 764011757 | F43: 764011757 | G43: 764011757 | H43: 764011757 | I43: 1 | J43: 0 | K43: 0 | L43: =F43-H43-K43 -> 0 | M43: 334011602062800147341 | N43: 7341 -ADECUACIÓN HIDRÁULICA Y RECUPERACIÓN AMBIENTAL DE HUME | O43: 0 | P43: 0 | Q43: 0 | R43: 0 | S43: 0 | T43: 0 | U43: 0 | V43: 0 | W43: 0 | X43: 0 | Y43: 334011602062800147341 | Z43: 7341 -ADECUACIÓN HIDRÁULICA Y RECUPERACIÓN AMBIENTAL DE HUME | AA43: 0 | AB43: 0 | AC43: 0 | AD43: 0 | AE43: 0 | AF43: 0 | AG43: 0 | AH43: 0 | AI43: 0 | AJ43: 0 | AK43: 334011602062800147341 | AL43: 7341 -ADECUACIÓN HIDRÁULICA Y RECUPERACIÓN AMBIENTAL DE HUME | AM43: =C43+O43+AA43 -> 0 | AN43: =D43+P43+AB43 -> 764011757 | AO43: =E43+Q43+AC43 -> 764011757 | AP43: =F43+R43+AD43 -> 764011757 | AQ43: =G43+S43+AE43 -> 764011757 | AR43: =H43+T43+AF43 -> 764011757 | AS43: 1 | AT43: =J43+V43+AH43 -> 0 | AU43: =K43+W43+AI43 -> 0 | AV43: =L43+X43+AJ43 -> 0
A44: 334011602063600 | B44: MANEJO Y SANEAMIENTO DE LOS CUERPOS DE AGUA | C44: =C45+C46+C47 -> 0 | D44: =D45+D46+D47 -> 59479507998 | E44: 59479507998 | F44: 59479507998 | G44: 55873600100 | H44: 55873600100 | I44: 0.9393756267 | J44: =J45+J46+J47 -> 0 | K44: =K45+K46+K47 -> 0 | L44: =L45+L46+L47 -> 3605907898 | M44: 334011602063600 | N44: MANEJO Y SANEAMIENTO DE LOS CUERPOS DE AGUA | O44: =O45+O46+O47 -> 0 | P44: =P45+P46+P47 -> 51377465 | Q44: =Q45+Q46+Q47 -> 51377465 | R44: =R45+R46+R47 -> 51377465 | S44: =S45+S46+S47 -> 0 | T44: =T45+T46+T47 -> 0 | U44: 0 | V44: =V45+V46+V47 -> 0 | W44: =W45+W46+W47 -> 0 | X44: =X45+X46+X47 -> 51377465 | Y44: 334011602063600 | Z44: MANEJO Y SANEAMIENTO DE LOS CUERPOS DE AGUA | AA44: =AA45+AA46+AA47 -> 0 | AB44: =AB45+AB46+AB47 -> 0 | AC44: =AC45+AC46+AC47 -> 0 | AD44: =AD45+AD46+AD47 -> 0 | AE44: =AE45+AE46+AE47 -> 0 | AF44: =AF45+AF46+AF47 -> 0 | AG44: 0 | AH44: =AH45+AH46+AH47 -> 0 | AI44: =AI45+AI46+AI47 -> 0 | AJ44: 0 | AK44: 334011602063600 | AL44: MANEJO Y SANEAMIENTO DE LOS CUERPOS DE AGUA | AM44: =AM45+AM46+AM47 -> 0 | AN44: =AN45+AN46+AN47 -> 59530885463 | AO44: =AO45+AO46+AO47 -> 59530885463 | AP44: =AP45+AP46+AP47 -> 59530885463 | AQ44: =AQ45+AQ46+AQ47 -> 55873600100 | AR44: =AR45+AR46+AR47 -> 55873600100 | AS44: 0.938564909 | AT44: =AT45+AT46+AT47 -> 0 | AU44: =AU45+AU46+AU47 -> 0 | AV44: =AV45+AV46+AV47 -> 3657285363
A45: 334011602063600190051 | B45: 0051 - RENOVACIÓN Y/O REPOSICIÓN DEL SISTEMA TRONCAL, SECUND | C45: 0 | D45: 39298907867 | E45: 39298907867 | F45: 39298907867 | G45: 37539925496 | H45: 37539925496 | I45: 0.955240935 | J45: 0 | K45: 0 | L45: =F45-H45-K45 -> 1758982371 | M45: 334011602063600190051 | N45: 0051 - RENOVACIÓN Y/O REPOSICIÓN DEL SISTEMA TRONCAL, SECUND | O45: 0 | P45: 0 | Q45: 0 | R45: 0 | S45: 0 | T45: 0 | U45: 0 | V45: 0 | W45: 0 | X45: 0 | Y45: 334011602063600190051 | Z45: 0051 - RENOVACIÓN Y/O REPOSICIÓN DEL SISTEMA TRONCAL, SECUND | AA45: 0 | AB45: 0 | AC45: 0 | AD45: 0 | AE45: 0 | AF45: 0 | AG45: 0 | AH45: 0 | AI45: 0 | AJ45: 0 | AK45: 334011602063600190051 | AL45: 0051 - RENOVACIÓN Y/O REPOSICIÓN DEL SISTEMA TRONCAL, SECUND | AM45: =C45+O45+AA45 -> 0 | AN45: =D45+P45+AB45 -> 39298907867 | AO45: =E45+Q45+AC45 -> 39298907867 | AP45: =F45+R45+AD45 -> 39298907867 | AQ45: =G45+S45+AE45 -> 37539925496 | AR45: =H45+T45+AF45 -> 37539925496 | AS45: 0.955240935 | AT45: =J45+V45+AH45 -> 0 | AU45: =K45+W45+AI45 -> 0 | AV45: =L45+X45+AJ45 -> 1758982371
A46: 334011602063600190052 | B46: 0052 - RENOVACIÓN Y/O REPOSICIÓN DEL SISTEMA TRONCAL, SECUND | C46: 0 | D46: 14427013747 | E46: 14427013747 | F46: 14427013747 | G46: 14185264442 | H46: 14185264442 | I46: 0.9832432887 | J46: 0 | K46: 0 | L46: 241749305 | M46: 334011602063600190052 | N46: 0052 - RENOVACIÓN Y/O REPOSICIÓN DEL SISTEMA TRONCAL, SECUND | O46: 0 | P46: 0 | Q46: 0 | R46: 0 | S46: 0 | T46: 0 | U46: 0 | V46: 0 | W46: 0 | X46: 0 | Y46: 334011602063600190052 | Z46: 0052 - RENOVACIÓN Y/O REPOSICIÓN DEL SISTEMA TRONCAL, SECUND | AA46: 0 | AB46: 0 | AC46: 0 | AD46: 0 | AE46: 0 | AF46: 0 | AG46: 0 | AH46: 0 | AI46: 0 | AJ46: 0 | AK46: 334011602063600190052 | AL46: 0052 - RENOVACIÓN Y/O REPOSICIÓN DEL SISTEMA TRONCAL, SECUND | AM46: 0 | AN46: 14427013747 | AO46: 14427013747 | AP46: 14427013747 | AQ46: 14185264442 | AR46: 14185264442 | AS46: 0.9832432887 | AT46: 0 | AU46: 0 | AV46: 241749305
A47: 334011602063600190082 | B47: 0082 - DESARROLLO DEL PLAN DE SANEAMIENTO Y MANEJO DE VERTIM | C47: 0 | D47: 5753586384 | E47: 5753586384 | F47: 5753586384 | G47: 4148410162 | H47: 4148410162 | I47: 0.7210129274 | J47: 0 | K47: 0 | L47: 1605176222 | M47: 334011602063600190082 | N47: 0082 - DESARROLLO DEL PLAN DE SANEAMIENTO Y MANEJO DE VERTIM | O47: 0 | P47: 51377465 | Q47: 51377465 | R47: 51377465 | S47: 0 | T47: 0 | U47: 0 | V47: 0 | W47: 0 | X47: 51377465 | Y47: 334011602063600190082 | Z47: 0082 - DESARROLLO DEL PLAN DE SANEAMIENTO Y MANEJO DE VERTIM | AA47: 0 | AB47: 0 | AC47: 0 | AD47: 0 | AE47: 0 | AF47: 0 | AG47: 0 | AH47: 0 | AI47: 0 | AJ47: 0 | AK47: 334011602063600190082 | AL47: 0082 - DESARROLLO DEL PLAN DE SANEAMIENTO Y MANEJO DE VERTIM | AM47: 0 | AN47: 5804963849 | AO47: 5804963849 | AP47: 5804963849 | AQ47: 4148410162 | AR47: 4148410162 | AS47: 0.714631524 | AT47: 0 | AU47: 0 | AV47: 1656553687
A48: 334011602070000 | B48: CUIDADO Y MANTENIMIENTO DEL AMBIENTE CONSTRUIDO | C48: =C49 -> 0 | D48: =D49 -> 328048960533 | E48: 328048960533 | F48: 328048960533 | G48: 321730494652 | H48: 321730494652 | I48: 0.9807392596 | J48: =J49 -> 5115647908 | K48: 5115647908 | L48: 1202817973 | M48: 334011602070000 | N48: CUIDADO Y MANTENIMIENTO DEL AMBIENTE CONSTRUIDO | O48: =O49 -> 0 | P48: =P49 -> 41806255628 | Q48: =Q49 -> 41806255628 | R48: =R49 -> 41806255628 | S48: =S49 -> 39259233760 | T48: =T49 -> 39259233760 | U48: 0.9390755802 | V48: =V49 -> 2547021868 | W48: =W49 -> 2547021868 | X48: =X49 -> 0 | Y48: 334011602070000 | Z48: CUIDADO Y MANTENIMIENTO DEL AMBIENTE CONSTRUIDO | AA48: =AA49 -> 0 | AB48: =AB49 -> 636755468 | AC48: =AC49 -> 636755468 | AD48: =AD49 -> 636755468 | AE48: =AE49 -> 0 | AF48: =AF49 -> 0 | AG48: 0 | AH48: =AH49 -> 636755468 | AI48: =AI49 -> 636755468 | AJ48: 0 | AK48: 334011602070000 | AL48: CUIDADO Y MANTENIMIENTO DEL AMBIENTE CONSTRUIDO | AM48: =AM49 -> 0 | AN48: =AN49 -> 370491971629 | AO48: =AO49 -> 370491971629 | AP48: =AP49 -> 370491971629 | AQ48: =AQ49 -> 360989728412 | AR48: =AR49 -> 360989728412 | AS48: 0.974352364 | AT48: =AT49 -> 8299425244 | AU48: =AU49 -> 8299425244 | AV48: =AV49 -> 1202817973
A49: 334011602073700 | B49: PROVISIÓN Y MEJORAMIENTO DE SERVICIOS PÚBLICOS | C49: =C50+C51+C52+C53+C54+C55+C56 -> 0 | D49: =D50+D51+D52+D53+D54+D55+D56 -> 328048960533 | E49: 328048960533 | F49: 328048960533 | G49: 321730494652 | H49: 321730494652 | I49: 0.9807392596 | J49: =J50+J51+J52+J53+J54+J55+J56 -> 5115647908 | K49: 5115647908 | L49: 1202817973 | M49: 334011602073700 | N49: PROVISIÓN Y MEJORAMIENTO DE SERVICIOS PÚBLICOS | O49: =O50+O51+O52+O53+O54+O55+O56 -> 0 | P49: =P50+P51+P52+P53+P54+P55+P56 -> 41806255628 | Q49: =Q50+Q51+Q52+Q53+Q54+Q55+Q56 -> 41806255628 | R49: =R50+R51+R52+R53+R54+R55+R56 -> 41806255628 | S49: =S50+S51+S52+S53+S54+S55+S56 -> 39259233760 | T49: =T50+T51+T52+T53+T54+T55+T56 -> 39259233760 | U49: 0.9390755802 | V49: =V50+V51+V52+V53+V54+V55+V56 -> 2547021868 | W49: =W50+W51+W52+W53+W54+W55+W56 -> 2547021868 | X49: =X50+X51+X52+X53+X54+X55+X56 -> 0 | Y49: 334011602073700 | Z49: PROVISIÓN Y MEJORAMIENTO DE SERVICIOS PÚBLICOS | AA49: =AA50+AA51+AA52+AA53+AA54+AA55+AA56 -> 0 | AB49: =AB50+AB51+AB52+AB53+AB54+AB55+AB56 -> 636755468 | AC49: =AC50+AC51+AC52+AC53+AC54+AC55+AC56 -> 636755468 | AD49: =AD50+AD51+AD52+AD53+AD54+AD55+AD56 -> 636755468 | AE49: =AE50+AE51+AE52+AE53+AE54+AE55+AE56 -> 0 | AF49: =AF50+AF51+AF52+AF53+AF54+AF55+AF56 -> 0 | AG49: 0 | AH49: =AH50+AH51+AH52+AH53+AH54+AH55+AH56 -> 636755468 | AI49: =AI50+AI51+AI52+AI53+AI54+AI55+AI56 -> 636755468 | AJ49: 0 | AK49: 334011602073700 | AL49: PROVISIÓN Y MEJORAMIENTO DE SERVICIOS PÚBLICOS | AM49: =AM50+AM51+AM52+AM53+AM54+AM55+AM56 -> 0 | AN49: =AN50+AN51+AN52+AN53+AN54+AN55+AN56 -> 370491971629 | AO49: =AO50+AO51+AO52+AO53+AO54+AO55+AO56 -> 370491971629 | AP49: =AP50+AP51+AP52+AP53+AP54+AP55+AP56 -> 370491971629 | AQ49: =AQ50+AQ51+AQ52+AQ53+AQ54+AQ55+AQ56 -> 360989728412 | AR49: =AR50+AR51+AR52+AR53+AR54+AR55+AR56 -> 360989728412 | AS49: 0.974352364 | AT49: =AT50+AT51+AT52+AT53+AT54+AT55+AT56 -> 8299425244 | AU49: =AU50+AU51+AU52+AU53+AU54+AU55+AU56 -> 8299425244 | AV49: =AV50+AV51+AV52+AV53+AV54+AV55+AV56 -> 1202817973
A50: 334011602073700190019 | B50: 0019 - CONSTRUCCIÓN DE REDES LOCALES PARA SERVICIO DE ALCANT | C50: 0 | D50: 11668762025 | E50: 11668762025 | F50: 11668762025 | G50: 11156590792 | H50: 11156590792 | I50: 0.9561074918 | J50: 0 | K50: 0 | L50: =F50-H50-K50 -> 512171233 | M50: 334011602073700190019 | N50: 0019 - CONSTRUCCIÓN DE REDES LOCALES PARA SERVICIO DE ALCANT | O50: 0 | P50: 5275090598 | Q50: 5275090598 | R50: 5275090598 | S50: 5275090598 | T50: 5275090598 | U50: 1 | V50: 0 | W50: 0 | X50: 0 | Y50: 334011602073700190019 | Z50: 0019 - CONSTRUCCIÓN DE REDES LOCALES PARA SERVICIO DE ALCANT | AA50: 0 | AB50: 0 | AC50: 0 | AD50: 0 | AE50: 0 | AF50: 0 | AG50: 0 | AH50: 0 | AI50: 0 | AJ50: 0 | AK50: 334011602073700190019 | AL50: 0019 - CONSTRUCCIÓN DE REDES LOCALES PARA SERVICIO DE ALCANT | AM50: =C50+O50+AA50 -> 0 | AN50: =D50+P50+AB50 -> 16943852623 | AO50: =E50+Q50+AC50 -> 16943852623 | AP50: =F50+R50+AD50 -> 16943852623 | AQ50: =G50+S50+AE50 -> 16431681390 | AR50: =H50+T50+AF50 -> 16431681390 | AS50: 0.9697724452 | AT50: =J50+V50+AH50 -> 0 | AU50: =K50+W50+AI50 -> 0 | AV50: =L50+X50+AJ50 -> 512171233
A51: 334011602073700190020 | B51: 0020 - CONSTRUCCIÓN DE REDES LOCALES PARA EL SERVICIO DE ALC | C51: 0 | D51: 14636414189 | E51: 14636414189 | F51: 14636414189 | G51: 14102337334 | H51: 14102337334 | I51: 0.963510403 | J51: 0 | K51: 0 | L51: 534076855 | M51: 334011602073700190020 | N51: 0020 - CONSTRUCCIÓN DE REDES LOCALES PARA EL SERVICIO DE ALC | O51: 0 | P51: 7487307593 | Q51: 7487307593 | R51: 7487307593 | S51: 7487307593 | T51: 7487307593 | U51: 1 | V51: 0 | W51: 0 | X51: 0 | Y51: 334011602073700190020 | Z51: 0020 - CONSTRUCCIÓN DE REDES LOCALES PARA EL SERVICIO DE ALC | AA51: 0 | AB51: 0 | AC51: 0 | AD51: 0 | AE51: 0 | AF51: 0 | AG51: 0 | AH51: 0 | AI51: 0 | AJ51: 0 | AK51: 334011602073700190020 | AL51: 0020 - CONSTRUCCIÓN DE REDES LOCALES PARA EL SERVICIO DE ALC | AM51: 0 | AN51: 22123721782 | AO51: 22123721782 | AP51: 22123721782 | AQ51: 21589644927 | AR51: 21589644927 | AS51: 0.9758595385 | AT51: 0 | AU51: 0 | AV51: 534076855
A52: 334011602073700190050 | B52: 0050 - RENOVACIÓN Y/O REPOSICIÓN DE LOS SISTEMAS DE ABASTECI | C52: 0 | D52: 208376737736 | E52: 208376737736 | F52: 208376737736 | G52: 203104519943 | H52: 203104519943 | I52: 0.9746986259 | J52: 5115647908 | K52: 5115647908 | L52: 156569885 | M52: 334011602073700190050 | N52: 0050 - RENOVACIÓN Y/O REPOSICIÓN DE LOS SISTEMAS DE ABASTECI | O52: 0 | P52: 26174971204 | Q52: 26174971204 | R52: 26174971204 | S52: 23627949336 | T52: 23627949336 | U52: 0.9026924672 | V52: 2547021868 | W52: 2547021868 | X52: 0 | Y52: 334011602073700190050 | Z52: 0050 - RENOVACIÓN Y/O REPOSICIÓN DE LOS SISTEMAS DE ABASTECI | AA52: 0 | AB52: 636755468 | AC52: 636755468 | AD52: 636755468 | AE52: 0 | AF52: 0 | AG52: 0 | AH52: 636755468 | AI52: 636755468 | AJ52: 0 | AK52: 334011602073700190050 | AL52: 0050 - RENOVACIÓN Y/O REPOSICIÓN DE LOS SISTEMAS DE ABASTECI | AM52: 0 | AN52: 235188464408 | AO52: 235188464408 | AP52: 235188464408 | AQ52: 226732469279 | AR52: 226732469279 | AS52: 0.9640458764 | AT52: 8299425244 | AU52: 8299425244 | AV52: 156569885
A53: 334011602073700190054 | B53: 0054 - DESARROLLO DE ACCIONES PARA EL SANEAMIENTO DEL RÍO BO | C53: 0 | D53: 65381426116 | E53: 65381426116 | F53: 65381426116 | G53: 65381426116 | H53: 65381426116 | I53: 1 | J53: 0 | K53: 0 | L53: 0 | M53: 334011602073700190054 | N53: 0054 - DESARROLLO DE ACCIONES PARA EL SANEAMIENTO DEL RÍO BO | O53: 0 | P53: 0 | Q53: 0 | R53: 0 | S53: 0 | T53: 0 | U53: 0 | V53: 0 | W53: 0 | X53: 0 | Y53: 334011602073700190054 | Z53: 0054 - DESARROLLO DE ACCIONES PARA EL SANEAMIENTO DEL RÍO BO | AA53: 0 | AB53: 0 | AC53: 0 | AD53: 0 | AE53: 0 | AF53: 0 | AG53: 0 | AH53: 0 | AI53: 0 | AJ53: 0 | AK53: 334011602073700190054 | AL53: 0054 - DESARROLLO DE ACCIONES PARA EL SANEAMIENTO DEL RÍO BO | AM53: 0 | AN53: 65381426116 | AO53: 65381426116 | AP53: 65381426116 | AQ53: 65381426116 | AR53: 65381426116 | AS53: 1 | AT53: 0 | AU53: 0 | AV53: 0
A54: 334011602073700190068 | B54: 0068 - ADECUACIÓN DE LAS REDES ASOCIADAS A LA INFRAESTRUCTUR | C54: 0 | D54: 10754705083 | E54: 10754705083 | F54: 10754705083 | G54: 10754705083 | H54: 10754705083 | I54: 1 | J54: 0 | K54: 0 | L54: 0 | M54: 334011602073700190068 | N54: 0068 - ADECUACIÓN DE LAS REDES ASOCIADAS A LA INFRAESTRUCTUR | O54: 0 | P54: 0 | Q54: 0 | R54: 0 | S54: 0 | T54: 0 | U54: 0 | V54: 0 | W54: 0 | X54: 0 | Y54: 334011602073700190068 | Z54: 0068 - ADECUACIÓN DE LAS REDES ASOCIADAS A LA INFRAESTRUCTUR | AA54: 0 | AB54: 0 | AC54: 0 | AD54: 0 | AE54: 0 | AF54: 0 | AG54: 0 | AH54: 0 | AI54: 0 | AJ54: 0 | AK54: 334011602073700190068 | AL54: 0068 - ADECUACIÓN DE LAS REDES ASOCIADAS A LA INFRAESTRUCTUR | AM54: 0 | AN54: 10754705083 | AO54: 10754705083 | AP54: 10754705083 | AQ54: 10754705083 | AR54: 10754705083 | AS54: 1 | AT54: 0 | AU54: 0 | AV54: 0
A55: 334011602073700197334 | B55: 7334 - CONSTRUCCIÓN Y EXPANSIÓN DEL SISTEMA DE ABASTECIMIENT | C55: 0 | D55: 13433170360 | E55: 13433170360 | F55: 13433170360 | G55: 13433170360 | H55: 13433170360 | I55: 1 | J55: 0 | K55: 0 | L55: 0 | M55: 334011602073700197334 | N55: 7334 - CONSTRUCCIÓN Y EXPANSIÓN DEL SISTEMA DE ABASTECIMIENT | O55: 0 | P55: 0 | Q55: 0 | R55: 0 | S55: 0 | T55: 0 | U55: 0 | V55: 0 | W55: 0 | X55: 0 | Y55: 334011602073700197334 | Z55: 7334 - CONSTRUCCIÓN Y EXPANSIÓN DEL SISTEMA DE ABASTECIMIENT | AA55: 0 | AB55: 0 | AC55: 0 | AD55: 0 | AE55: 0 | AF55: 0 | AG55: 0 | AH55: 0 | AI55: 0 | AJ55: 0 | AK55: 334011602073700197334 | AL55: 7334 - CONSTRUCCIÓN Y EXPANSIÓN DEL SISTEMA DE ABASTECIMIENT | AM55: 0 | AN55: 13433170360 | AO55: 13433170360 | AP55: 13433170360 | AQ55: 13433170360 | AR55: 13433170360 | AS55: 1 | AT55: 0 | AU55: 0 | AV55: 0
A56: 334011602073700197338 | B56: 7338 - CONSTRUCCIÓN DE REDES LOCALES PARA EL SERVICIO DE ACU | C56: 0 | D56: 3797745024 | E56: 3797745024 | F56: 3797745024 | G56: 3797745024 | H56: 3797745024 | I56: 1 | J56: 0 | K56: 0 | L56: 0 | M56: 334011602073700197338 | N56: 7338 - CONSTRUCCIÓN DE REDES LOCALES PARA EL SERVICIO DE ACU | O56: 0 | P56: 2868886233 | Q56: 2868886233 | R56: 2868886233 | S56: 2868886233 | T56: 2868886233 | U56: 1 | V56: 0 | W56: 0 | X56: 0 | Y56: 334011602073700197338 | Z56: 7338 - CONSTRUCCIÓN DE REDES LOCALES PARA EL SERVICIO DE ACU | AA56: 0 | AB56: 0 | AC56: 0 | AD56: 0 | AE56: 0 | AF56: 0 | AG56: 0 | AH56: 0 | AI56: 0 | AJ56: 0 | AK56: 334011602073700197338 | AL56: 7338 - CONSTRUCCIÓN DE REDES LOCALES PARA EL SERVICIO DE ACU | AM56: 0 | AN56: 6666631257 | AO56: 6666631257 | AP56: 6666631257 | AQ56: 6666631257 | AR56: 6666631257 | AS56: 1 | AT56: 0 | AU56: 0 | AV56: 0
